{"text_format":"2","workbook":"xlsx","n_sheets":7,"sheets":["SEK - Safesprings tjänster 2023","EUR - Safespring services 2023","EUR - Safespring services 2021","NOK - Safespring tjenester 2023","NOK - Safesprings tjeneste 2021","SUNET SEK - priser 2020","Data"],"not_rendered":{"charts":0,"images":3,"macros":0,"external_links":0,"defined_names":191,"comments":0,"pivot_tables":0},"unopened":[],"bounds":{"document_bytes":16777216,"sheet_cells":100000,"run_cost":"one","rows_first":2000,"rows_last":500,"rows_between":2000,"halvings":0,"cell_chars":16384,"cell_head_chars":4096},"cells_cut":0,"cells_raw":0,"read":"whole","date_system":"1900"}

{"sheet":"SEK - Safesprings tjänster 2023","index":0,"n_rows":242,"n_cols":11,"rows_kept":242,"cut":false,"hidden":false,"merged":[[124,1,126,6],[131,6,131,7],[103,7,103,8],[132,6,132,7],[133,6,133,7],[131,2,131,3],[132,2,132,3],[133,2,133,3],[132,4,132,5],[133,4,133,5],[131,4,131,5],[102,7,102,8],[105,7,105,8],[104,7,104,8],[109,1,111,6],[102,3,102,4],[103,3,103,4],[104,3,104,4],[105,3,105,4],[102,5,102,6],[103,5,103,6],[105,5,105,6],[104,5,104,6],[101,7,101,8],[99,7,99,8],[3,1,3,2],[14,1,16,6],[18,1,18,5],[99,5,99,6],[99,3,99,4],[101,3,101,4],[101,5,101,6],[23,1,23,4],[44,1,44,4],[59,1,59,4],[69,1,69,4],[86,1,88,10],[219,1,221,6],[222,1,222,5],[138,1,140,6],[181,1,183,6],[184,1,184,5],[185,1,185,5]]}
[]
[]
[]
[]
[null,"Priskalkylator 2024-02-27"]
[]
[]
[null,"Kontakta Safespring",null,"Valuta"]
[null,"Telefon: 08-55 10 73 56"]
[null,"hello@safespring.com"]
[]
[]
[]
[]
[null,"Safespring Compute | IaaS"]
[]
[]
[null,"Infrastruktur kan köras med kostnadsfri Open Source-licens eller med Windows-licens."]
[null,"Alla priser är angivna i SEK, exklusive moms."]
[null,"Instruktioner: Fyll i önskad kvantitet i de färgade fälten. "]
[]
[]
[null,"Flavors med lokal NVMe-disk"]
[null,"Central blocklagring kan köpas till instanserna. Se \"Central blocklagring\" i prislistan."]
[null,"Produkt ID","vCPU","RAM (GB)","Lokal disk (GB)","Per timme","Per 30 dagar",null,"Antal instanser",null,"Infrastruktur"]
[null,"FLAVOR-l2. c2 r4. 100",2,4,100,{"$f":"G26/720","v":0.66666666666666663},{"$f":"C26*IAAS_vcpu_SEK+D26*IAAS_ram_SEK+E26*IAAS_nvme_SEK","v":480},null,null,null,{"$f":"ROUNDUP(I26*G26,2)","v":0}]
[null,"FLAVOR-l2. c2 r4. 500",2,4,500,1.2222222222222223,880,null,null,null,0]
[null,"FLAVOR-l2. c2 r4. 1000",2,4,1000,1.9166666666666667,1380,null,null,null,0]
[null,"FLAVOR-l2. c4 r8. 100",4,8,100,1.1944444444444444,860,null,null,null,0]
[null,"FLAVOR-l2. c4 r8. 500",4,8,500,1.75,1260,null,null,null,0]
[null,"FLAVOR-l2. c4 r8. 1000",4,8,1000,2.4444444444444446,1760,null,null,null,0]
[null,"FLAVOR-l2. c8 r16. 100",8,16,100,2.25,1620,null,null,null,0]
[null,"FLAVOR-l2. c8 r16. 500",8,16,500,2.8055555555555554,2020,null,null,null,0]
[null,"FLAVOR-l2. c8 r16. 1000",8,16,1000,3.5,2520,null,null,null,0]
[null,"FLAVOR-l2. c16 r32. 100",16,32,100,4.3611111111111107,3140,null,null,null,0]
[null,"FLAVOR-l2. c16 r32. 500",16,32,500,4.916666666666667,3540,null,null,null,0]
[null,"FLAVOR-l2. c16 r32. 1000",16,32,1000,{"$f":"G37/720","v":5.6111111111111107},{"$f":"C37*IAAS_vcpu_SEK+D37*IAAS_ram_SEK+E37*IAAS_nvme_SEK","v":4040},null,null,null,{"$f":"ROUNDUP(I37*G37,2)","v":0}]
[null,"FLAVOR-l2. c16 r64. 500",16,64,500,{"$f":"G38/720","v":7.3611111111111107},{"$f":"C38*IAAS_vcpu_SEK+D38*IAAS_ram_SEK+E38*IAAS_nvme_SEK","v":5300},null,null,null,{"$f":"ROUNDUP(I38*G38,2)","v":0}]
[null,"FLAVOR-l2. c32 r64.1000",32,64,1000,9.8333333333333339,7080,null,null,null,0]
[null,"Totalt",{"$f":"SUM(C26:C39*I26:I39)&\" st\"","v":"0 st"},{"$f":"SUM(D26:D39*I26:I39)&\" GB\"","v":"0 GB"},{"$f":"SUM(E26:E39*I26:I39)&\" GB\"","v":"0 GB"},null,null,null,{"$f":"SUM(I26:I39)&\" st\"","v":"0 st"},null,{"$f":"SUM(K26:K39)","v":0}]
[]
[]
[]
[null,"Flavors utan lokal disk"]
[null,"Central blocklagring kan köpas till instanserna. Se \"Central blocklagring\" i prislistan."]
[null,"Produkt ID","vCPU","RAM (GB)","Lokal disk (GB)","Per timme","Per 30 dagar",null,"Antal instanser",null,"Infrastruktur"]
[null,"FLAVOR-b2. c1 r2",1,2,0,{"$f":"G47/720","v":0.2638888888888889},{"$f":"C47*IAAS_vcpu_SEK+D47*IAAS_ram_SEK+E47*IAAS_ssd_SEK","v":190},null,null,null,{"$f":"ROUNDUP(I47*G47,2)","v":0}]
[null,"FLAVOR-b2. c1 r4",1,4,0,0.41666666666666669,300,null,null,null,0]
[null,"FLAVOR-b2. c2 r4",2,4,0,0.52777777777777779,380,null,null,null,0]
[null,"FLAVOR-b2. c2 r8",2,8,0,0.83333333333333337,600,null,null,null,0]
[null,"FLAVOR-b2 .c4 r8",4,8,0,1.0555555555555556,760,null,null,null,0]
[null,"FLAVOR-b2. c4 r16",4,16,0,1.6666666666666667,1200,null,null,null,0]
[null,"FLAVOR-b2. c8 r16",8,16,0,2.1111111111111112,1520,null,null,null,0]
[null,"FLAVOR-b2. c8 r32",8,32,0,3.3333333333333335,2400,null,null,null,0]
[null,"FLAVOR-b2. c16 r32",16,32,0,4.2222222222222223,3040,null,null,null,0]
[null,"FLAVOR-b2. c16 r64",16,64,0,{"$f":"G56/720","v":6.666666666666667},{"$f":"C56*IAAS_vcpu_SEK+D56*IAAS_ram_SEK+E56*IAAS_ssd_SEK","v":4800},null,null,null,{"$f":"ROUNDUP(I56*G56,2)","v":0}]
[null,"Totalt",{"$f":"SUM(b2_list_vCPU*b2_list_Antal_instanser)&\" st\"","v":"0 st"},{"$f":"SUM(b2_list_ram*b2_list_vCPU)&\" GB\"","v":"0 GB"},"N/A",null,null,null,{"$f":"SUM(I47:I56)&\" st\"","v":"0 st"},null,{"$f":"SUM(K47:K56)","v":0}]
[]
[null,"Instanser med GPU och lokal disk (NVME-disk)"]
[null,"Central blocklagring kan köpas till instanserna. Se \"Central blocklagring\" i prislistan."]
[null,"Produkt ID","CPU (p) core","RAM (GB)","NVME (GB)","GPU","Per timme","Per 30 dagar","Antal instanser",null,"Infrastruktur"]
[null,"INSTANCE-glm.large.1d",4,16,250,1,{"$f":"H62/720","v":9.6527777777777786},{"$f":"C62*IAAS_vcpu_SEK+D62*IAAS_ram_SEK+E62*IAAS_nvme_SEK+F62*IAAS_gpu_SEK","v":6950},null,null,{"$f":"ROUNDUP(I62*H62,2)","v":0}]
[null,"INSTANCE-glm.xlarge.2d",8,32,500,2,19.305555555555557,{"$f":"C63*IAAS_vcpu_SEK+D63*IAAS_ram_SEK+E63*IAAS_nvme_SEK+F63*IAAS_gpu_SEK","v":13900},null,null,{"$f":"ROUNDUP(I63*H63,2)","v":0}]
[null,"INSTANCE-glm.2xlarge.4d",16,64,1000,4,{"$f":"H64/720","v":38.611111111111114},{"$f":"C64*IAAS_vcpu_SEK+D64*IAAS_ram_SEK+E64*IAAS_nvme_SEK+F64*IAAS_gpu_SEK","v":27800},null,null,{"$f":"ROUNDUP(I64*H64,2)","v":0}]
[null,"INSTANCE-glm.4xlarge.8d",32,128,1000,6,60.555555555555557,{"$f":"C65*IAAS_vcpu_SEK+D65*IAAS_ram_SEK+E65*IAAS_nvme_SEK+F65*IAAS_gpu_SEK","v":43600},null,null,{"$f":"ROUNDUP(I65*H65,2)","v":0}]
[null,"Totalt",{"$f":"SUM(I62:I65*C62:C65)&\" st\"","v":"0 st"},{"$f":"SUM(I62:I65*D62:D65)&\" GB\"","v":"0 GB"},{"$f":"SUM(I62:I65*E62:E65)&\" GB\"","v":"0 GB"},{"$f":"SUM(I62:I65*F62:F65)&\" st\"","v":"0 st"},null,null,{"$f":"SUM(I62:I65)&\" st\"","v":"0 st"},null,{"$f":"SUM(K62:K65)","v":0}]
[]
[]
[null,"Bare Metal Compute "]
[null,"Central blocklagring kan köpas till instanserna. Se \"Central blocklagring\" i prislistan."]
[null,"Produkt ID","CPU (p) core","RAM (GB)","NVME (GB)","Per timme","Per 30 dagar",null,"Antal",null,"Infrastruktur"]
[null,"INSTANCE-p1.2xlarge.16d",16,128,3800,{"$f":"G72/720","v":9.5},{"$f":"INSTANCE_p1.2xlarge.16d_SEK","v":6840},null,null,null,{"$f":"ROUNDUP(I72*G72,2)","v":0}]
[null,"INSTANCE-p1.4xlarge.16d",32,256,3800,19,{"$f":"INSTANCE_p1.4xlarge.16d_SEK","v":13680},null,null,null,{"$f":"ROUNDUP(I73*G73,2)","v":0}]
[null,"INSTANCE-p1.8xlarge.32d",64,512,7600,38,{"$f":"INSTANCE_p1.8xlarge.32d_SEK","v":27360},null,null,null,{"$f":"ROUNDUP(I74*G74,2)","v":0}]
[null,"Totalt",{"$f":"SUM(I72:I74*C72:C74)&\" st\"","v":"0 st"},{"$f":"SUM(I72:I74*D72:D74)&\" GB\"","v":"0 GB"},{"$f":"SUM(I72:I74*E72:E74)&\" GB\"","v":"0 GB"},null,null,null,{"$f":"SUM(I72:I74)&\" st\"","v":"0 st"},null,{"$f":"SUM(K72:K74)","v":0}]
[]
[]
[null,"Central blocklagring"]
[null,"Central blocklagring ger tre kopior av datat utspritt i ett robust CEPH-kluster."]
[null,"Produkt ID","Beskrivning",null,null,"Per timme","Per 30 dagar",null,"Extra GB",null,"Lagring"]
[null,"VOLUME-large","HDD-backed 3-replica Ceph",null,null,{"$f":"G81/720","v":1.6666666666666666E-3},{"$f":"VOLUME_large_SEK","v":1.2},null,null,null,{"$f":"ROUNDUP(I81*G81,2)","v":0}]
[null,"VOLUME-fast","SSD-backed 3-replica Ceph",null,null,{"$f":"G82/720","v":5.0000000000000001E-3},{"$f":"VOLUME_fast_SEK","v":3.6},null,null,null,{"$f":"ROUNDUP(I82*G82,2)","v":0}]
[null,"VOLUME-snapshot","Snapshot of image",null,null,{"$f":"G83/720","v":1.6666666666666666E-3},{"$f":"VOLUME_large_SEK","v":1.2},null,null,null,{"$f":"ROUNDUP(I83*G83,2)","v":0}]
[null,"Totalt",{"$nulls":6},{"$f":"SUM(I81:I83)&\" GB\"","v":"0 GB"},null,{"$f":"SUM(K81:K83)","v":0}]
[]
[]
[null,"Safespring Storage | S3"]
[]
[]
[null,"Snabb objektlagring med standarden S3. (Archive är anpassad för längre lagringstider)"]
[null,"Kontaka oss för rabatter vid större lagringsmängder. Prismodell baserat på antal lagrade TB i månaden."]
[null,"Instruktioner: Fyll i önskad kvantitet i de färgade fälten. "]
[]
[null,"Produkt ID",{"$nulls":4},"Per TB i 30 dagar",null,"Antal TB",null,"Storage"]
[null,"S3-archive","Anpassad för större lagringsvolymer över längre tid.",null,null,null,{"$f":"S3_archive.50_SEK","v":350},null,null,null,{"$f":"I95*G95","v":0}]
[null,"S3-storage","Anpassad för applikationer som aktivt använder S3-protokollet.",null,null,null,{"$f":"S3_storage50_SEK","v":500},null,null,null,{"$f":"I96*G96","v":0}]
[null,"Totalt",{"$nulls":8},{"$f":"SUM(K95:K96)","v":0}]
[]
[null,"S3 Archive"]
[null,"Produkt ID","Antal TB","Per TB/månad"]
[null,"S3-archive",null,null,{"$f":"_xlfn.IFS(H101<50,D102,H101<100,D103,H101<500,D104,H101<1000,D105,H101>999,D106)","v":185},null,null,600,"TB",null,{"$f":"_xlfn.IFS(H101<1000,ROUNDUP(H101*E101,2),H101>999,E101)","v":111000}]
[null,"S3-archive","0 - 49",{"$f":"S3_archive.50_SEK","v":350}]
[null,"S3-archive","50 - 99",{"$f":"S3_archive.100_SEK","v":270}]
[null,"S3-archive","100 - 499",{"$f":"S3_archive.500_SEK","v":200}]
[null,"S3-archive","500 - 999",{"$f":"S3_archive.1000_SEK","v":185}]
[null,"S3-archive","1000 - ",{"$f":"S3_archive.quote_SEK","v":"Be om offert"}]
[null,"  Totalt",{"$nulls":8},{"$f":"K101","v":111000}]
[]
[]
[null,"Safespring Backup | SP"]
[]
[]
[null,"Cloud backup solution for on-prem or cloud servers based on Spectrum Protect (TSM)."]
[null,"Alla priser angivna i SEK, exklusive moms."]
[null,"Instruktioner: Fyll i önskad kvantitet i de färgade fälten. "]
[]
[null,"Produkt ID",null,null,"Fast månadspris",null,"Per GB i 30 dagar",null,"Antal GB","Deduplicering 1","Pris"]
[null,"BAAS-on.demand 2",null,null,"N/A",null,{"$f":"BAAS_on.demand_SEK","v":2.4500000000000002},null,null,"N/A",{"$f":"ROUNDUP(I118*G118,2)","v":0}]
[null,"BAAS-small 3",null,null,5500,null,{"$f":"BAAS_small_SEK","v":1.75},null,null,0.75,{"$f":"IF(I119>0,$E$119+($G$119*(I119*(1-$J$119))),0)","v":0}]
[null,"BAAS-large 4",null,null,9500,null,{"$f":"BAAS_large_SEK","v":0.92},null,null,0.75,{"$f":"IF(I120>0,$E$120+($G$120*(I120*(1-$J$120))),0)","v":0}]
[null,"Totalt",{"$nulls":6},{"$f":"SUM(I118:I120)&\" GB\"","v":"0 GB"},null,{"$f":"SUM(K118:K120)","v":0}]
[]
[]
[]
[null,"Compliant Kubernetes"]
[]
[]
[null,"Kör Compliant Kubernetes som en managerad tjänst. "]
[null,"Safespring Compute tillkommer. Vi kan tillsammans med er räkna ut ert pris."]
[]
[]
[null,"Produkt ID","Support-tider",null,"Tillgänglighet",null,"Fast månadspris",null,null,null,"Pris"]
[null,"PAAS-man.kubernetes8","08:00 - 17:00",null,"Vardagar",null,15000,null,null,0,{"$f":"IF(J133=1,G133,\" \")","v":" "}]
[null,"PAAS-man.kubernetes24","Dygnet runt",null,"Alla dagar",null,24000,null,null,null,{"$f":"IF(J133=3,G134,\" \")","v":" "}]
[null,"Totalt",{"$nulls":8},{"$f":"SUM(K133:K134)","v":0}]
[]
[]
[]
[null,"Nätverk och Mjukvara"]
[]
[]
[null,"Alla priser angivna i SEK, exklusive moms."]
[]
[null,"Nätverk"]
[null,"Safespring erbjuder flera nätverkstjänster."]
[null,"Produkt ID"," Typ",null,"Beskrivning",{"$nulls":4},"Debitering per","Per månad"]
[null,"NET-publicv4","IPv4",null,"Publik",{"$nulls":4},"IP-adress",{"$f":"NET_publicv4_SEK","v":25}]
[null,"NET-publicv6","IPv6",null,"Publik",{"$nulls":4},"N/A",{"$f":"NET_publicv6_SEK","v":0}]
[null,"NET-ingress","Datatrafik",{"$nulls":6},"GB",{"$f":"NET_ingress_SEK","v":0}]
[null,"NET-egress","Datatrafik",{"$nulls":6},"GB",{"$f":"NET_egress_SEK","v":0}]
[null,"NET-mgn.slb","Managed SLB ",null,"Lastbalanserare som kräver egna servrar",{"$nulls":4},"Instans ",{"$f":"NET_mgn.slb_SEK","v":"Begär offert"}]
[null,"NET-rdns","Reverse DNS names",{"$nulls":6},"N/A",{"$f":"NET_rdns_SEK","v":0}]
[null,"NET-byoip","Bring your own IP prefixes",{"$nulls":6},"N/A",0]
[]
[]
[]
[null,"Mjukvara och licenser"]
[null,"Safespring erbjuder flera mjukvaror och licenser."]
[null,"Produkt ID",null,null,"Beskrivning",{"$nulls":4},"Debitering per","Per månad"]
[null,"SW-win.ser.2022",null,null,"Windows Server",{"$nulls":4},"vCPU",{"$f":"SW_win.ser.201X_SEK","v":175}]
[null,"SW-ms.sql.ser",null,null,"Windows SQL Server standard",{"$nulls":4},"vCPU",{"$f":"SW_ms.sql.ser_SEK","v":1229}]
[null,"SW-ms.sql.ser.ent",null,null,"Windows SQL Server Enterprise",{"$nulls":4},"vCPU",{"$f":"SW_ms.sql.ser.ent_SEK","v":4766}]
[null,"SW-nextcloud",null,null,"Nextcloud Filesharing",{"$nulls":4},"N/A",{"$f":"SW_nextcloud_SEK","v":"Begär offert"}]
[null,"SW-suse.linux",null,null,"SUSE Linux Enterprise Server, 12x5 Support",{"$nulls":4},"N/A",{"$f":"SW_suse_SEK","v":"Begär offert"}]
[]
[]
[]
[null,"Plattformstjänster"]
[null,"Safespring erbjuder flera plattformstjänster. "]
[null,"Produkt ID",null,null,"Beskrivning",{"$nulls":5},"Per månad"]
[null,"PAAS-man.kubernetes24",null,null,"Managed Compliant Kubernetes 24/7",{"$nulls":5},{"$f":"PAAS_man.kubernetes_SEK","v":"Begär offert"}]
[null,"PAAS-man.kubernetes8",null,null,"Managed Compliant Kubernetes 8/5",{"$nulls":5},{"$f":"PAAS_man.postgres.sql_SEK","v":"Begär offert"}]
[null,"PAAS-man.elasticsearch",null,null,"Managed Elasticsearch (ingår i Compliant Kubernetes)",{"$nulls":5},{"$f":"PAAS_man.elasticsearch_SEK","v":"Begär offert"}]
[null,"PAAS-openshift",null,null,"Ingen suport",{"$nulls":5},{"$f":"PAAS_openshift_SEK","v":"Begär offert"}]
[null,"PAAS-jupyter.notebook",null,null,"Single basic Jupyter notebook with 1 lab, 8vCPU/16GB RAM virtual machine",{"$nulls":5},5650]
[null,"PAAS-man.nats",null,null,"Managed NATS",{"$nulls":5},{"$f":"PAAS_man.nats_SEK","v":"Begär offert"}]
[null,"PAAS-man.mariadb",null,null,"Managed MariaDB",{"$nulls":5},{"$f":"PAAS_man.mariadb_SEK","v":"Begär offert"}]
[null,"PAAS-man.redis",null,null,"Managed Redis",{"$nulls":5},"Begär offert"]
[]
[]
[]
[null,"Support och konsulttjänster"]
[]
[]
[null,"Support gäller för Safespring Compute, Safespring Storage och Safespring Backup."]
[null,"Alla priser angivna i SEK, exklusive moms."]
[]
[null,"Support"]
[null,"Safespring erbjuder flera supportavtal."]
[null,"Produkt ID",null,"Beskrivning",{"$nulls":4},"Debitering per",null,"Pris"]
[null,"SUPPORT-base",null,"Support för Safesprings tjänster",{"$nulls":4},"N/A",null,0]
[null,"SUPPORT-standard",null,"Access to backchannel chat room with support and engineering",{"$nulls":4},"Total volym",null,"3 % av total volym 5"]
[null,"SUPPORT-premium",null,"Dedicated Service Manager with quarterly operations meetings",{"$nulls":4},"Timme",null,"Begär offert"]
[]
[]
[null,"Konsulttjänster"]
[null,"Safespring erbjuder flera konsulttjänster."]
[null,"Produkt ID",null,"Beskrivning",{"$nulls":4},"Debitering per",null,"Pris"]
[null,"PS-consult.jun",null,"Cloud Infrastructure Consultant, junior expertise level",{"$nulls":4},"Timme",null,{"$f":"PS_consult.jun_SEK","v":1127}]
[null,"PS-consult.sen",null,"Cloud infrastructure Consultant, senior expertise level",{"$nulls":4},"Timme",null,{"$f":"PS_consult.sen_SEK","v":1374}]
[null,"PS-cloudarch.jun",null,"Cloud Infrastructure Architect Consultant, junior expertise level",{"$nulls":4},"Timme",null,{"$f":"PS_cloudarch.jun_SEK","v":1277}]
[null,"PS-cloudarch.sen",null,"Cloud Infrastructure Architect Consultant, senior expertise level",{"$nulls":4},"Timme",null,{"$f":"PS_cloudarch.sen_SEK","v":1374}]
[null,"PS-pm.jun",null,"Project Manager, junior expertise level",{"$nulls":4},"Timme",null,{"$f":"PS_pm.jun_SEK","v":1139}]
[null,"PS-pm.sen",null,"Project Manager, senior expertise level",{"$nulls":4},"Timme",null,{"$f":"PS_pm.sen_SEK","v":1374}]
[]
[]
[null,"Utbildningar"]
[null,"Safespring erbjuder flera utbildningar inom IaaS och molntjänster."]
[null,"Produkt ID",null,"Beskrivning",null,null,"Längd",null,"Debitering per",null,"Pris"]
[null,"COURSE-intro.iaas",null,"Introduktion till \"infrastruktur som tjänst\"",null,null,"En dag",null,"Tillfälle",null,"Begär offert"]
[null,"COURSE-cxo.strategy",null,"Molnstrategi för ledningsgrupper,",null,null,"En dag",null,"Tillfälle",null,"Begär offert"]
[null,"COURSE-intro.cloud",null,"Introduktion till moln-infrastrukturteknik,",null,null,"Fyra dagar",null,"Tillfälle",null,"Begär offert"]
[null,"COURSE-devops.microservices",null,"Modern DevOps och \"microservices\"",null,null,"Fyra dagar",null,"Tillfälle",null,"Begär offert"]
[]
[]
[]
[]
[]
[]
[null,"Månadskostnad"]
[]
[]
[null,"Alla priser angivna i SEK, exklusive moms."]
[]
[null,"Kontakta Safespring för fullständig offert"]
[null,"Telefon: 08-55 10 73 56"]
[null,"hello@safespring.com"]
[]
[null,"Produkt",{"$nulls":7},"Månadskostnad"]
[null,"Safespring Compute",{"$f":"SUM(I26:I37*C26:C37)+SUM(I47:I56*b2_list_Antal_instanser)+SUM(I62:I65*C62:C65)+SUM(I72:I74*C72:C74)&\" vCPU\"&\"     /     \"&SUM(I26:I37*E26)+SUM(b2_list_vCPU*b2_list_ram)+SUM(I62:I65*D62:D65)+SUM(I72:I74*D72:D74)&\" GB RAM\"&\"     /     \"&SUM(I26:I37*E26:E37)+SUM(b2_list_vCPU*E47:E56)+SUM(I62:I65*E62:E65)+SUM(I72:I74*E72:E74)&\" GB  NVME\"&\"     /     \"&SUM(I81:I83)&\" GB Blocklagring\"","v":"0 vCPU     /     0 GB RAM     /     0 GB  NVME     /     0 GB Blocklagring"},{"$nulls":6},{"$f":"K66+K75+K57+K40+K84","v":0}]
[null,"Safespring Storage",{"$f":"K96&\" TB - Storage\"&\"     /     \"&K95&\" TB - Archive\"","v":"0 TB - Storage     /     0 TB - Archive"},{"$nulls":6},{"$f":"K97","v":0}]
[null,"Safespring Backup",{"$nulls":7},{"$f":"K121","v":0}]
[null,"Totalt",{"$nulls":7},{"$f":"SUM(J230:J232)","v":0}]
[]
[]
[]
[]
[null,"1 Dedup är en datareduktion som görs i tjänsten. Beroende på data varierar det normalt mellan 45%-90%"]
[null,"2 Priset är per skyddad GB på klienten. "]
[null,"3 Priset är per lagrad GB i tjänsten efter deduplicering och komprimering. Det ingår 1 000 GB i det fasta månadspriset. "]
[null,"4 Priset är per lagrad GB i tjänsten efter deduplicering och komprimering. "]
[null,"5 The support fee is charged at 3 % of the total volume with a minimum fee of 1500 SEK per month."]

{"sheet":"EUR - Safespring services 2023","index":1,"n_rows":242,"n_cols":11,"rows_kept":242,"cut":false,"hidden":false,"merged":[[101,3,101,4],[101,5,101,6],[101,7,101,8],[3,1,3,2],[14,1,16,6],[59,1,59,4],[69,1,69,4],[86,1,88,6],[99,3,99,4],[99,5,99,6],[99,7,99,8],[23,1,23,5],[44,1,44,5],[102,3,102,4],[102,5,102,6],[102,7,102,8],[103,3,103,4],[103,5,103,6],[103,7,103,8],[132,2,132,3],[132,4,132,5],[104,3,104,4],[104,5,104,6],[104,7,104,8],[105,3,105,4],[105,5,105,6],[105,7,105,8],[109,1,111,6],[124,1,126,6],[131,2,131,3],[131,4,131,5],[131,6,131,7],[184,1,184,5],[185,1,185,5],[219,1,221,6],[222,1,222,5],[133,2,133,3],[133,4,133,5],[138,1,140,6],[181,1,183,6]]}
[]
[]
[]
[]
[null,"Price calculator 2024-02-27"]
[]
[]
[null,"Contact Safespring",null,"Currency"]
[null,"Call us: +46 8-55 10 73 56"]
[null,"hello@safespring.com"]
[]
[]
[]
[]
[null,"Safespring Compute | IaaS"]
[]
[]
[null,"Infrastructure as a service can run on an open source license or with a Windows license."]
[null,"All prices are in EUR, excluding VAT."]
[null,"Instructions: Fill in the desired quantity in the colored fields."]
[]
[]
[null,"Flavors with local NVMe storage"]
[null,"Central block storage can be purchased for the instances. See \"Central block storage\" in the price list."]
[null,"Product ID","vCPU","RAM (GB)","Local disc (GB)","Hourly","30 days",null,"Amount",null,"Infrastructure"]
[null,{"$f":"'SEK - Safesprings tjänster 2023'!B26","v":"FLAVOR-l2. c2 r4. 100"},{"$f":"'SEK - Safesprings tjänster 2023'!C26","v":2},{"$f":"'SEK - Safesprings tjänster 2023'!D26","v":4},{"$f":"'SEK - Safesprings tjänster 2023'!E26","v":100},{"$f":"G26/720","v":5.9333333333333321E-2},{"$f":"C26*IAAS_vcpu_EUR+D26*IAAS_ram_EUR+E26*IAAS_nvme_EUR","v":42.719999999999992},null,null,null,{"$f":"ROUNDUP(I26*G26,2)","v":0}]
[null,{"$f":"'SEK - Safesprings tjänster 2023'!B27","v":"FLAVOR-l2. c2 r4. 500"},{"$f":"'SEK - Safesprings tjänster 2023'!C27","v":2},{"$f":"'SEK - Safesprings tjänster 2023'!D27","v":4},{"$f":"'SEK - Safesprings tjänster 2023'!E27","v":500},0.10877777777777776,78.319999999999993,null,null,null,0]
[null,{"$f":"'SEK - Safesprings tjänster 2023'!B28","v":"FLAVOR-l2. c2 r4. 1000"},{"$f":"'SEK - Safesprings tjänster 2023'!C28","v":2},{"$f":"'SEK - Safesprings tjänster 2023'!D28","v":4},{"$f":"'SEK - Safesprings tjänster 2023'!E28","v":1000},0.17058333333333334,122.82,null,null,null,0]
[null,{"$f":"'SEK - Safesprings tjänster 2023'!B29","v":"FLAVOR-l2. c4 r8. 100"},{"$f":"'SEK - Safesprings tjänster 2023'!C29","v":4},{"$f":"'SEK - Safesprings tjänster 2023'!D29","v":8},{"$f":"'SEK - Safesprings tjänster 2023'!E29","v":100},0.10630555555555554,76.539999999999992,null,null,null,0]
[null,{"$f":"'SEK - Safesprings tjänster 2023'!B30","v":"FLAVOR-l2. c4 r8. 500"},{"$f":"'SEK - Safesprings tjänster 2023'!C30","v":4},{"$f":"'SEK - Safesprings tjänster 2023'!D30","v":8},{"$f":"'SEK - Safesprings tjänster 2023'!E30","v":500},0.15574999999999997,112.13999999999999,null,null,null,0]
[null,{"$f":"'SEK - Safesprings tjänster 2023'!B31","v":"FLAVOR-l2. c4 r8. 1000"},{"$f":"'SEK - Safesprings tjänster 2023'!C31","v":4},{"$f":"'SEK - Safesprings tjänster 2023'!D31","v":8},{"$f":"'SEK - Safesprings tjänster 2023'!E31","v":1000},0.21755555555555553,156.63999999999999,null,null,null,0]
[null,{"$f":"'SEK - Safesprings tjänster 2023'!B32","v":"FLAVOR-l2. c8 r16. 100"},{"$f":"'SEK - Safesprings tjänster 2023'!C32","v":8},{"$f":"'SEK - Safesprings tjänster 2023'!D32","v":16},{"$f":"'SEK - Safesprings tjänster 2023'!E32","v":100},0.20024999999999998,144.17999999999998,null,null,null,0]
[null,{"$f":"'SEK - Safesprings tjänster 2023'!B33","v":"FLAVOR-l2. c8 r16. 500"},{"$f":"'SEK - Safesprings tjänster 2023'!C33","v":8},{"$f":"'SEK - Safesprings tjänster 2023'!D33","v":16},{"$f":"'SEK - Safesprings tjänster 2023'!E33","v":500},0.24969444444444441,179.77999999999997,null,null,null,0]
[null,{"$f":"'SEK - Safesprings tjänster 2023'!B34","v":"FLAVOR-l2. c8 r16. 1000"},{"$f":"'SEK - Safesprings tjänster 2023'!C34","v":8},{"$f":"'SEK - Safesprings tjänster 2023'!D34","v":16},{"$f":"'SEK - Safesprings tjänster 2023'!E34","v":1000},0.31149999999999994,224.27999999999997,null,null,null,0]
[null,{"$f":"'SEK - Safesprings tjänster 2023'!B35","v":"FLAVOR-l2. c16 r32. 100"},{"$f":"'SEK - Safesprings tjänster 2023'!C35","v":16},{"$f":"'SEK - Safesprings tjänster 2023'!D35","v":32},{"$f":"'SEK - Safesprings tjänster 2023'!E35","v":100},0.38813888888888876,279.45999999999992,null,null,null,0]
[null,{"$f":"'SEK - Safesprings tjänster 2023'!B36","v":"FLAVOR-l2. c16 r32. 500"},{"$f":"'SEK - Safesprings tjänster 2023'!C36","v":16},{"$f":"'SEK - Safesprings tjänster 2023'!D36","v":32},{"$f":"'SEK - Safesprings tjänster 2023'!E36","v":500},{"$f":"G36/720","v":0.43758333333333327},{"$f":"C36*IAAS_vcpu_EUR+D36*IAAS_ram_EUR+E36*IAAS_nvme_EUR","v":315.05999999999995},null,null,null,{"$f":"ROUNDUP(I36*G36,2)","v":0}]
[null,{"$f":"'SEK - Safesprings tjänster 2023'!B37","v":"FLAVOR-l2. c16 r32. 1000"},{"$f":"'SEK - Safesprings tjänster 2023'!C37","v":16},{"$f":"'SEK - Safesprings tjänster 2023'!D37","v":32},{"$f":"'SEK - Safesprings tjänster 2023'!E37","v":1000},0.49938888888888883,359.55999999999995,null,null,null,0]
[null,{"$f":"'SEK - Safesprings tjänster 2023'!B38","v":"FLAVOR-l2. c16 r64. 500"},{"$f":"'SEK - Safesprings tjänster 2023'!C38","v":16},{"$f":"'SEK - Safesprings tjänster 2023'!D38","v":64},{"$f":"'SEK - Safesprings tjänster 2023'!E38","v":500},{"$f":"G38/720","v":0.65513888888888883},{"$f":"C38*IAAS_vcpu_EUR+D38*IAAS_ram_EUR+E38*IAAS_nvme_EUR","v":471.69999999999993},null,null,null,{"$f":"ROUNDUP(I38*G38,2)","v":0}]
[null,{"$f":"'SEK - Safesprings tjänster 2023'!B39","v":"FLAVOR-l2. c32 r64.1000"},{"$f":"'SEK - Safesprings tjänster 2023'!C39","v":32},{"$f":"'SEK - Safesprings tjänster 2023'!D39","v":64},{"$f":"'SEK - Safesprings tjänster 2023'!E39","v":1000},{"$f":"G39/720","v":0.87516666666666654},{"$f":"C39*IAAS_vcpu_EUR+D39*IAAS_ram_EUR+E39*IAAS_nvme_EUR","v":630.11999999999989},null,null,null,{"$f":"ROUNDUP(I39*G39,2)","v":0}]
[null,"Total",{"$f":"SUM(C26:C39*I26:I39)","v":0},{"$f":"SUM(D26:D39*I26:I39)&\" GB\"","v":"0 GB"},{"$f":"SUM(E26:E39*I26:I39)&\" GB\"","v":"0 GB"},null,null,null,{"$f":"SUM(I26:I39)","v":0},null,{"$f":"SUM(K26:K39)","v":0}]
[]
[]
[]
[null,"Flavors without local storage"]
[null,"Central block storage can be purchased for the instances. See \"Central block storage\" in the price list."]
[null,"Product ID","vCPU","RAM (GB)","Local disc (GB)","Hourly","30 days",null,"Amount",null,"Infrastructure"]
[null,{"$f":"'SEK - Safesprings tjänster 2023'!B47","v":"FLAVOR-b2. c1 r2"},{"$f":"'SEK - Safesprings tjänster 2023'!C47","v":1},{"$f":"'SEK - Safesprings tjänster 2023'!D47","v":2},{"$f":"'SEK - Safesprings tjänster 2023'!E47","v":0},{"$f":"G47/720","v":2.3486111111111107E-2},{"$f":"C47*IAAS_vcpu_EUR+D47*IAAS_ram_EUR+E47*IAAS_ssd_EUR","v":16.909999999999997},null,null,null,{"$f":"ROUNDUP(I47*G47,2)","v":0}]
[null,{"$f":"'SEK - Safesprings tjänster 2023'!B48","v":"FLAVOR-b2. c1 r4"},{"$f":"'SEK - Safesprings tjänster 2023'!C48","v":1},{"$f":"'SEK - Safesprings tjänster 2023'!D48","v":4},{"$f":"'SEK - Safesprings tjänster 2023'!E48","v":0},3.7083333333333329E-2,26.699999999999996,null,null,null,0]
[null,{"$f":"'SEK - Safesprings tjänster 2023'!B49","v":"FLAVOR-b2. c2 r4"},{"$f":"'SEK - Safesprings tjänster 2023'!C49","v":2},{"$f":"'SEK - Safesprings tjänster 2023'!D49","v":4},{"$f":"'SEK - Safesprings tjänster 2023'!E49","v":0},4.6972222222222214E-2,33.819999999999993,null,null,null,0]
[null,{"$f":"'SEK - Safesprings tjänster 2023'!B50","v":"FLAVOR-b2. c2 r8"},{"$f":"'SEK - Safesprings tjänster 2023'!C50","v":2},{"$f":"'SEK - Safesprings tjänster 2023'!D50","v":8},{"$f":"'SEK - Safesprings tjänster 2023'!E50","v":0},7.4166666666666659E-2,53.399999999999991,null,null,null,0]
[null,{"$f":"'SEK - Safesprings tjänster 2023'!B51","v":"FLAVOR-b2 .c4 r8"},{"$f":"'SEK - Safesprings tjänster 2023'!C51","v":4},{"$f":"'SEK - Safesprings tjänster 2023'!D51","v":8},{"$f":"'SEK - Safesprings tjänster 2023'!E51","v":0},9.3944444444444428E-2,67.639999999999986,null,null,null,0]
[null,{"$f":"'SEK - Safesprings tjänster 2023'!B52","v":"FLAVOR-b2. c4 r16"},{"$f":"'SEK - Safesprings tjänster 2023'!C52","v":4},{"$f":"'SEK - Safesprings tjänster 2023'!D52","v":16},{"$f":"'SEK - Safesprings tjänster 2023'!E52","v":0},0.14833333333333332,106.79999999999998,null,null,null,0]
[null,{"$f":"'SEK - Safesprings tjänster 2023'!B53","v":"FLAVOR-b2. c8 r16"},{"$f":"'SEK - Safesprings tjänster 2023'!C53","v":8},{"$f":"'SEK - Safesprings tjänster 2023'!D53","v":16},{"$f":"'SEK - Safesprings tjänster 2023'!E53","v":0},0.18788888888888886,135.27999999999997,null,null,null,0]
[null,{"$f":"'SEK - Safesprings tjänster 2023'!B54","v":"FLAVOR-b2. c8 r32"},{"$f":"'SEK - Safesprings tjänster 2023'!C54","v":8},{"$f":"'SEK - Safesprings tjänster 2023'!D54","v":32},{"$f":"'SEK - Safesprings tjänster 2023'!E54","v":0},0.29666666666666663,213.59999999999997,null,null,null,0]
[null,{"$f":"'SEK - Safesprings tjänster 2023'!B55","v":"FLAVOR-b2. c16 r32"},{"$f":"'SEK - Safesprings tjänster 2023'!C55","v":16},{"$f":"'SEK - Safesprings tjänster 2023'!D55","v":32},{"$f":"'SEK - Safesprings tjänster 2023'!E55","v":0},{"$f":"G55/720","v":0.37577777777777771},{"$f":"C55*IAAS_vcpu_EUR+D55*IAAS_ram_EUR+E55*IAAS_ssd_EUR","v":270.55999999999995},null,null,null,{"$f":"ROUNDUP(I55*G55,2)","v":0}]
[null,{"$f":"'SEK - Safesprings tjänster 2023'!B56","v":"FLAVOR-b2. c16 r64"},{"$f":"'SEK - Safesprings tjänster 2023'!C56","v":16},{"$f":"'SEK - Safesprings tjänster 2023'!D56","v":64},{"$f":"'SEK - Safesprings tjänster 2023'!E56","v":0},0.59333333333333327,427.19999999999993,null,null,null,0]
[null,"Total",{"$f":"SUM(b2_list_vCPU*b2_list_Antal_instanser)","v":0},{"$f":"SUM(b2_list_ram*b2_list_vCPU)","v":0},"N/A",null,null,null,{"$f":"SUM(I47:I56)","v":0},null,{"$f":"SUM(K47:K56)","v":0}]
[]
[null,"Instanser med GPU och lokal disk (NVME-disk)"]
[null,"Central blocklagring kan köpas till insatserna. Se \"Central blocklagring\" i prislistan."]
[null,"Produkt ID","CPU (p) core","RAM (GB)","NVME (GB)","GPU","Per timme","Per 30 dagar","Antal instanser",null,"Infrastruktur"]
[null,"INSTANCE-glm.large.1d",4,16,250,1,{"$f":"H62/720","v":9.6527777777777786},{"$f":"C62*IAAS_vcpu_SEK+D62*IAAS_ram_SEK+E62*IAAS_nvme_SEK+F62*IAAS_gpu_SEK","v":6950},null,null,{"$f":"ROUNDUP(I62*H62,2)","v":0}]
[null,"INSTANCE-glm.xlarge.2d",8,32,500,2,19.305555555555557,{"$f":"C63*IAAS_vcpu_SEK+D63*IAAS_ram_SEK+E63*IAAS_nvme_SEK+F63*IAAS_gpu_SEK","v":13900},null,null,{"$f":"ROUNDUP(I63*H63,2)","v":0}]
[null,"INSTANCE-glm.2xlarge.4d",16,64,1000,4,38.611111111111114,{"$f":"C64*IAAS_vcpu_SEK+D64*IAAS_ram_SEK+E64*IAAS_nvme_SEK+F64*IAAS_gpu_SEK","v":27800},null,null,{"$f":"ROUNDUP(I64*H64,2)","v":0}]
[null,"INSTANCE-glm.4xlarge.8d",32,128,1000,6,60.555555555555557,{"$f":"C65*IAAS_vcpu_SEK+D65*IAAS_ram_SEK+E65*IAAS_nvme_SEK+F65*IAAS_gpu_SEK","v":43600},null,null,{"$f":"ROUNDUP(I65*H65,2)","v":0}]
[null,"Totalt",{"$f":"SUM(I62:I65*C62:C65)&\" st\"","v":"0 st"},{"$f":"SUM(I62:I65*D62:D65)&\" GB\"","v":"0 GB"},{"$f":"SUM(I62:I65*E62:E65)&\" GB\"","v":"0 GB"},{"$f":"SUM(I62:I65*F62:F65)&\" st\"","v":"0 st"},null,null,{"$f":"SUM(I62:I65)&\" st\"","v":"0 st"},null,{"$f":"SUM(K62:K65)","v":0}]
[]
[]
[null,"Bare Metal Compute "]
[null,"Central blocklagring kan köpas till insatserna. Se \"Central blocklagring\" i prislistan."]
[null,"Produkt ID","CPU (p) core","RAM (GB)","NVME (GB)","Per timme","Per 30 dagar",null,"Antal",null,"Infrastruktur"]
[null,"INSTANCE-p1.2xlarge.16d",16,128,3800,{"$f":"G72/720","v":9.5},{"$f":"INSTANCE_p1.2xlarge.16d_SEK","v":6840},null,null,null,{"$f":"ROUNDUP(I72*G72,2)","v":0}]
[null,"INSTANCE-p1.4xlarge.16d",32,256,3800,19,{"$f":"INSTANCE_p1.4xlarge.16d_SEK","v":13680},null,null,null,{"$f":"ROUNDUP(I73*G73,2)","v":0}]
[null,"INSTANCE-p1.8xlarge.32d",64,512,7600,38,{"$f":"INSTANCE_p1.8xlarge.32d_SEK","v":27360},null,null,null,{"$f":"ROUNDUP(I74*G74,2)","v":0}]
[null,"Totalt",{"$f":"SUM(I72:I74*C72:C74)&\" st\"","v":"0 st"},{"$f":"SUM(I72:I74*D72:D74)&\" GB\"","v":"0 GB"},{"$f":"SUM(I72:I74*E72:E74)&\" GB\"","v":"0 GB"},null,null,null,{"$f":"SUM(I72:I74)&\" st\"","v":"0 st"},null,{"$f":"SUM(K72:K74)","v":0}]
[]
[]
[null,"Central block storage"]
[null,"Central block storage provides three copies of the data distributed in a robust CEPH cluster."]
[null,"Product ID","Description",null,null,"Hourly","30 days",null,"Amount (GB)",null,"Storage"]
[null,"VOLUME-large","HDD-backed 3-replica Ceph",null,null,{"$f":"G81/720","v":1.4833333333333332E-4},{"$f":"VOLUME_large_EUR","v":0.10679999999999999},null,null,null,{"$f":"ROUNDUP(I81*G81,2)","v":0}]
[null,"VOLUME-fast","SSD-backed 3-replica Ceph",null,null,{"$f":"G82/720","v":4.4500000000000003E-4},{"$f":"VOLUME_fast_EUR","v":0.32040000000000002},null,null,null,{"$f":"ROUNDUP(I82*G82,2)","v":0}]
[null,"VOLUME-snapshot","Snapshot of image",null,null,{"$f":"G83/720","v":1.4833333333333332E-4},{"$f":"VOLUME_large_EUR","v":0.10679999999999999},null,null,null,{"$f":"ROUNDUP(I83*G83,2)","v":0}]
[null,"Total",{"$nulls":6},{"$f":"SUM(I81:I83)&\" GB\"","v":"0 GB"},null,{"$f":"SUM(K81:K83)","v":0}]
[]
[]
[null,"Safespring Storage | S3"]
[]
[]
[null,"Fast object storage with S3 standard. (Archive is adapted for longer storage times)"]
[null,"Contact us for discounts on larger storage quantities. Pricing model based on the number of stored terabytes per month."]
[null,"Instructions: Fill in the desired quantity in the colored fields."]
[]
[null,"Product ID",{"$nulls":4},"Per TB for 30 days",null,"Amount (TB)",null,"Storage"]
[null,"S3-archive",{"$nulls":4},{"$f":"S3_archive.50_EUR","v":31.15},null,null,null,{"$f":"I95*G95","v":0}]
[null,"S3-storage",{"$nulls":4},{"$f":"S3_storage50_EUR","v":44.5},null,null,null,{"$f":"I96*G96","v":0}]
[null,"Total",{"$nulls":8},{"$f":"SUM(K95:K96)","v":0}]
[]
[null,"S3 Archive"]
[null,"Produkt ID","Antal TB","Per TB/månad"]
[null,"S3-archive",null,null,{"$f":"_xlfn.IFS(H101<50,D102,H101<100,D103,H101<500,D104,H101<1000,D105,H101>999,D106)","v":185},null,null,600,"TB",null,{"$f":"_xlfn.IFS(H101<1000,ROUNDUP(H101*E101,2),H101>999,E101)","v":111000}]
[null,"S3-archive","0 - 49",{"$f":"S3_archive.50_SEK","v":350}]
[null,"S3-archive","50 - 99",{"$f":"S3_archive.100_SEK","v":270}]
[null,"S3-archive","100 - 499",{"$f":"S3_archive.500_SEK","v":200}]
[null,"S3-archive","500 - 999",{"$f":"S3_archive.1000_SEK","v":185}]
[null,"S3-archive","1000 - ",{"$f":"S3_archive.quote_SEK","v":"Be om offert"}]
[null,"  Totalt",{"$nulls":8},{"$f":"K101","v":111000}]
[]
[]
[null,"Safespring Backup | SP"]
[]
[]
[null,"Cloud backup solution for on-prem or cloud servers based on Spectrum Protect (TSM)."]
[null,"All prices are in EUR, excluding VAT."]
[null,"Instructions: Fill in the desired quantity in the colored fields."]
[]
[null,"Product ID",null,null,"Fixed monthly price",null,"Per GB / 30 days",null,"Amount (GB)","Deduplication  1","Backup"]
[null,"BAAS-on.demand 2",null,null,"N/A",null,{"$f":"BAAS_on.demand_EUR","v":0.21804999999999999},null,null,"N/A",{"$f":"ROUNDUP(I118*G118,2)","v":0}]
[null,"BAAS-small 3",null,null,{"$f":"BAAS_small.fee_EUR","v":489.5},null,{"$f":"BAAS_small_EUR","v":0.15575},null,null,0.75,{"$f":"IF(I119>0,$E$119+($G$119*(I119*(1-$J$119))),0)","v":0}]
[null,"BAAS-large 4",null,null,{"$f":"BAAS_large.fee_EUR","v":845.5},null,{"$f":"BAAS_large_EUR","v":8.1879999999999994E-2},null,null,0.75,{"$f":"IF(I120>0,$E$120+($G$120*(I120*(1-$J$120))),0)","v":0}]
[null,"Total",{"$nulls":6},{"$f":"SUM(I118:I120)&\" GB\"","v":"0 GB"},null,{"$f":"SUM(K118:K120)","v":0}]
[]
[]
[]
[null,"Compliant Kubernetes"]
[]
[]
[null,"Run Compliant Kubernetes as a managed service. Safespring Compute will be added."]
[null,"Safespring Compute will be added. We can work with you to calculate your price."]
[null,"Instructions: Fill in the desired quantity in the colored fields."]
[]
[null,"Product ID","Support hours",null,"Availability",null,"Fixed monthly price",null,null,null,"Pris"]
[null,"PAAS-man.kubernetes8","08:00 - 17:00",null,"Weekdays",null,{"$f":"PAAS_man.kubernetes_EUR","v":" Requests for quotation "},null,null,1,{"$f":"IF(J133=1,G133,\" \")","v":" Requests for quotation "}]
[null,"PAAS-man.kubernetes24","Around the clock",null,"All days",null,{"$f":"PAAS_man.kubernetes8_EUR","v":"Requests for quotation"},null,null,null,{"$f":"IF(J133=3,G134,\" \")","v":" "}]
[null,"Total",{"$nulls":8},{"$f":"SUM(K133:K134)","v":0}]
[]
[]
[]
[null,"Network and software"]
[]
[]
[null,"All prices are in EUR, excluding VAT."]
[]
[null,"Network"]
[null,"Safespring offers several network services."]
[null,"Product ID"," Type",null,"Description",{"$nulls":4},"Billing per","Monthly"]
[null,"NET-publicv4","IPv4",null,"Public",{"$nulls":4},"IP-address",{"$f":"NET_publicv4_EUR","v":2.2250000000000001}]
[null,"NET-publicv6","IPv6",null,"Public",{"$nulls":4},"N/A",{"$f":"NET_publicv6_EUR","v":0}]
[null,"NET-ingress","Data transfer",{"$nulls":6},"GB",{"$f":"NET_ingress_EUR","v":0}]
[null,"NET-egress","Data transfer",{"$nulls":6},"GB",{"$f":"NET_egress_EUR","v":0}]
[null,"NET-mgn.slb","Managed SLB ",null,"Load balancers that require their own servers",{"$nulls":4},"Instance",{"$f":"NET_mgn.slb_EUR","v":"Request a quote"}]
[null,"NET-rdns","Reverse DNS names",{"$nulls":6},"N/A",{"$f":"NET_rdns_EUR","v":0}]
[null,"NET-byoip","Bring your own IP prefixes",{"$nulls":6},"N/A",0]
[]
[]
[]
[null,"Software and licenses"]
[null,"Safespring offers several software and licenses."]
[null,"Product ID",null,null,"Description",{"$nulls":4},"Billing per","Monthly"]
[null,"SW-win.ser.2022",null,null,"Windows Server",{"$nulls":4},"vCPU",{"$f":"SW_win.ser.201X_EUR","v":15.574999999999999}]
[null,"SW-ms.sql.ser",null,null,"Windows SQL Server standard",{"$nulls":4},"vCPU",{"$f":"SW_ms.sql.ser_EUR","v":109.381}]
[null,"SW-ms.sql.ser.ent",null,null,"Windows SQL Server Enterprise",{"$nulls":4},"vCPU",{"$f":"SW_ms.sql.ser.ent_EUR","v":424.17399999999998}]
[null,"SW-nextcloud",null,null,"Nextcloud Filesharing",{"$nulls":5},{"$f":"SW_nextcloud_EUR","v":"Request a quote"}]
[null,"SW-suse.linux",null,null,"SUSE Linux Enterprise Server, 12x5 Support",{"$nulls":5},{"$f":"SW_suse_EUR","v":"Request a quote"}]
[]
[]
[]
[null,"Platform services"]
[null,"Safespring offers several platform services."]
[null,"Product ID",null,null,"Description",{"$nulls":5},"Monthly"]
[null,"PAAS-man.kubernetes24",null,null,"Managed Compliant Kubernetes 24/7",{"$nulls":5},{"$f":"PAAS_man.kubernetes_EUR","v":" Requests for quotation "}]
[null,"PAAS-man.kubernetes8",null,null,"Managed Compliant Kubernetes 8/5",{"$nulls":5},{"$f":"PAAS_man.postgres.sql_EUR","v":"Requests for quotation"}]
[null,"PAAS-man.elasticsearch",null,null,"Managed Elasticsearch (ingår i Compliant Kubernetes)",{"$nulls":5},{"$f":"PAAS_man.elasticsearch_EUR","v":"Requests for quotation"}]
[null,"PAAS-openshift",null,null,"No support",{"$nulls":5},{"$f":"PAAS_openshift_EUR","v":"Requests for quotation"}]
[null,"PAAS-man.nats",null,null,"Managed NATS",{"$nulls":5},{"$f":"PAAS_man.nats_EUR","v":"Requests for quotation"}]
[null,"PAAS-jupyter.notebook",null,null,"Single basic Jupyter notebook with 1 lab, 8vCPU/16GB RAM virtual machine",{"$nulls":5},565]
[null,"PAAS-man.mariadb",null,null,"Managed MariaDB",{"$nulls":5},{"$f":"PAAS_man.mariadb_EUR","v":"Requests for quotation"}]
[null,"PAAS-man.redis",null,null,"Managed Redis",{"$nulls":5},{"$f":"PAAS_man.redis_EUR","v":"Requests for quotation"}]
[]
[]
[]
[null,"Support and consulting services"]
[]
[]
[null,"Support applies to Safespring Compute, Safespring Storage and Safespring Backup."]
[null,"All prices stated in SEK, excluding VAT."]
[]
[null,"Support"]
[null,"Safespring offers several support agreements."]
[null,"Product ID",null,"Description",{"$nulls":4},"Billing per",null,"Monthly"]
[null,"SUPPORT-base",null,"Support for Safespring's services",{"$nulls":4},"Free",null,0]
[null,"SUPPORT-standard",null,"Access to backchannel chat room with support and engineering",{"$nulls":4},"Total volume",null,"3% of total volume 5"]
[null,"SUPPORT-premium",null,"Dedicated Service Manager with quarterly operations meetings",{"$nulls":4},"Hour",null,"Requests for quotation"]
[]
[]
[null,"Consulting services"]
[null,"Safespring offers several consulting services."]
[null,"Product ID",null,"Description",{"$nulls":4},"Billing per",null,"Monthly"]
[null,"PS-consult.jun",null,"Cloud Infrastructure Consultant, junior expertise level",{"$nulls":4},"Hour",null,{"$f":"PS_consult.jun_EUR","v":100.303}]
[null,"PS-consult.sen",null,"Cloud infrastructure Consultant, senior expertise level",{"$nulls":4},"Hour",null,{"$f":"PS_consult.sen_EUR","v":122.28599999999999}]
[null,"PS-cloudarch.jun",null,"Cloud Infrastructure Architect Consultant, junior expertise level",{"$nulls":4},"Hour",null,{"$f":"PS_cloudarch.jun_EUR","v":113.65299999999999}]
[null,"PS-cloudarch.sen",null,"Cloud Infrastructure Architect Consultant, senior expertise level",{"$nulls":4},"Hour",null,{"$f":"PS_cloudarch.sen_EUR","v":122.28599999999999}]
[null,"PS-pm.jun",null,"Project Manager, junior expertise level",{"$nulls":4},"Hour",null,{"$f":"PS_pm.jun_EUR","v":101.371}]
[null,"PS-pm.sen",null,"Project Manager, senior expertise level",{"$nulls":4},"Hour",null,{"$f":"PS_pm.sen_EUR","v":122.28599999999999}]
[]
[]
[null,"Educations"]
[null,"Safespring offers several courses in IaaS and cloud services."]
[null,"Product ID",null,"Description",null,null,"Duration",null,"Billing per",null,"Price"]
[null,"COURSE-intro.iaas",null,"Introduction to \"infrastructure as a service\"",null,null,"One day",null,"Occasion",null,"Requests for quotation"]
[null,"COURSE-cxo.strategy",null,"Cloud strategy for management teams",null,null,"One day",null,"Occasion",null,"Requests for quotation"]
[null,"COURSE-intro.cloud",null,"Introduction to cloud infrastructure technology",null,null,"Four days",null,"Occasion",null,"Requests for quotation"]
[null,"COURSE-devops.microservices",null,"Modern DevOps and \"microservices\"",null,null,"Four days",null,"Occasion",null,"Requests for quotation"]
[]
[]
[]
[]
[]
[]
[null,"Calculated price"]
[]
[]
[null,"All prices stated in SEK, excluding VAT."]
[]
[null,"Contact Safespring for a complete quote"]
[null,"Phone: +46 8-55 10 73 56"]
[null,"hello@safespring.com"]
[]
[null,"Product",{"$nulls":7},"Monthly cost"]
[null,"Safespring Compute",{"$f":"SUM(I26:I37*C26:C37)+SUM(I47:I56*b2_list_Antal_instanser)+SUM(I62:I65*C62:C65)+SUM(I72:I74*C72:C74)&\" vCPU\"&\"     /     \"&SUM(I26:I37*E26)+SUM(b2_list_vCPU*b2_list_ram)+SUM(I62:I65*D62:D65)+SUM(I72:I74*D72:D74)&\" GB RAM\"&\"     /     \"&SUM(I26:I37*E26:E37)+SUM(b2_list_vCPU*E47:E56)+SUM(I62:I65*E62:E65)+SUM(I72:I74*E72:E74)&\" GB  NVME\"&\"     /     \"&SUM(I81:I83)&\" GB Blocklagring\"","v":"0 vCPU     /     0 GB RAM     /     0 GB  NVME     /     0 GB Blocklagring"},{"$nulls":6},{"$f":"K66+K75+K57+K40+K84","v":0}]
[null,"Safespring Storage",{"$f":"K96&\" TB - S3\"&\"     /     \"&K95&\" TB - Archive\"","v":"0 TB - S3     /     0 TB - Archive"},{"$nulls":6},{"$f":"K97","v":0}]
[null,"Safespring Backup",{"$nulls":7},{"$f":"K121","v":0}]
[null,"Total",{"$nulls":7},{"$f":"SUM(J230:J232)","v":0}]
[]
[]
[]
[]
[null,"1 Deduplication is a data reduction done in the service. Depending on the data, it usually varies between 45% -90%"]
[null,"2 The price is per protected GB on the client."]
[null,"3 The price is per GB stored in the service after deduplication and compression."]
[null,"4 The price is per GB stored in the service after deduplication and compression. The service includes 1000GB in the fixed monthly price."]
[null,"5 The support fee is charged at 3 % of the total volume with a minimum fee of 1500 SEK per month."]

{"sheet":"EUR - Safespring services 2021","index":2,"n_rows":231,"n_cols":13,"rows_kept":231,"cut":false,"hidden":true,"merged":[[204,11,204,12],[195,11,195,12],[196,11,196,12],[181,1,183,6],[184,1,184,5],[185,1,185,5],[216,1,218,6],[219,1,219,5],[226,5,226,6],[181,11,181,12],[182,11,182,12],[183,11,183,12],[184,11,184,12],[185,11,185,12],[186,11,186,12],[187,11,187,12],[188,11,188,12],[189,11,189,12],[205,11,205,12],[206,11,206,12],[207,11,207,12],[208,11,208,12],[209,11,209,12],[200,11,200,12],[201,11,201,12],[202,11,202,12],[203,11,203,12],[105,7,105,8],[105,9,105,10],[106,3,106,4],[125,1,125,5],[128,5,128,6],[135,1,135,8],[136,1,136,8],[137,1,137,8],[124,1,124,5],[114,3,114,4],[114,5,114,6],[114,7,114,8],[115,3,115,4],[115,5,115,6],[115,7,115,8],[113,3,113,4],[113,5,113,6],[113,7,113,8],[116,3,116,4],[116,5,116,6],[116,7,116,8],[3,1,3,2],[14,1,16,6],[18,1,18,5],[87,5,87,6],[10,3,10,5],[107,5,107,6],[107,7,107,8],[107,9,107,10],[110,3,110,4],[110,5,110,6],[110,9,110,10],[101,3,101,4],[101,5,101,6],[101,9,101,10],[103,3,103,4],[103,5,103,6],[103,7,103,8],[103,9,103,10],[104,3,104,4],[104,5,104,6],[104,7,104,8],[104,9,104,10],[105,3,105,4],[105,5,105,6],[88,5,88,6],[128,9,128,10],[146,1,146,5],[129,1,129,2],[129,5,129,6],[129,9,129,10],[130,1,130,2],[130,5,130,6],[130,9,130,10],[131,1,131,2],[131,5,131,6],[131,9,131,10],[142,1,144,6],[145,1,145,5],[134,1,134,8],[112,3,112,4],[112,5,112,6],[112,7,112,8],[112,9,112,10],[89,5,89,6],[94,1,96,6],[97,1,97,5],[98,1,98,5],[121,1,123,6],[157,11,157,12],[158,11,158,12],[159,11,159,12],[160,11,160,12],[149,11,149,12],[150,11,150,12],[151,11,151,12],[152,11,152,12],[153,11,153,12],[154,11,154,12],[155,11,155,12],[156,11,156,12],[167,11,167,12],[168,11,168,12],[169,11,169,12],[170,11,170,12],[176,11,176,12],[177,11,177,12],[178,11,178,12],[161,11,161,12],[162,11,162,12],[163,11,163,12],[164,11,164,12],[165,11,165,12],[106,5,106,6],[106,7,106,8],[106,9,106,10],[107,3,107,4],[197,11,197,12],[198,11,198,12],[199,11,199,12],[190,11,190,12],[191,11,191,12],[192,11,192,12],[193,11,193,12],[194,11,194,12],[113,9,113,10],[114,9,114,10],[115,9,115,10],[116,9,116,10],[179,11,179,12],[180,11,180,12],[171,11,171,12],[172,11,172,12],[173,11,173,12],[174,11,174,12],[175,11,175,12],[166,11,166,12]]}
[]
[]
[]
[]
[null,"Price calculator 2022-01-04"]
[]
[]
[null,"Contact Safespring",null,"Currency"]
[null,"Phone: +46 855 10 73 56"]
[null,"sales@safespring.com"]
[null,null,null,{"$f":"\"1 SEK = \"&EUR&\" EUR\"","v":"1 SEK = 0,089 EUR"}]
[]
[]
[]
[null,"Safespring Compute"]
[]
[]
[null,"Infrastructure as a service can run on a open source license or with a Windows license."]
[null,"All prices are in EUR, excluding VAT."]
[null,"Instructions: Enter the desired amount in the colored fields"]
[]
[]
[null,"Instances with central block storage"]
[null,"Product ID","vCPU","RAM (GB)","Storage (GB)",null,"Hourly","Monthly (30 days)","Instances",null,"Infrastructure"]
[null,"INSTANCE-b.tiny",1,1,40,null,{"$f":"H25/720","v":3.4487499999999997E-2},{"$f":"C25*IAAS_vcpu_EUR+D25*IAAS_ram_EUR+E25*IAAS_ssd_EUR","v":24.831},null,"Instances",{"$f":"ROUNDUP(I25*H25,2)","v":0}]
[null,"INSTANCE-b.small",1,2,40,null,4.1286111111111107E-2,{"$f":"C26*IAAS_vcpu_EUR+D26*IAAS_ram_EUR+E26*IAAS_ssd_EUR","v":29.725999999999999},null,{"$f":"J25","v":"Instances"},0]
[null,"INSTANCE-b.medium",2,4,40,null,6.4772222222222217E-2,{"$f":"C27*IAAS_vcpu_EUR+D27*IAAS_ram_EUR+E27*IAAS_ssd_EUR","v":46.635999999999996},null,"Instances",0]
[null,"INSTANCE-b.large",4,8,40,null,0.11174444444444442,80.455999999999989,null,"Instances",0]
[null,"INSTANCE-b.xlarge",8,16,40,null,0.20568888888888887,148.09599999999998,null,"Instances",0]
[null,"INSTANCE-b.2xlarge",16,32,40,null,0.39357777777777769,283.37599999999992,null,"Instances",0]
[null,"INSTANCE-m.small",1,4,40,null,5.4883333333333333E-2,39.515999999999998,null,"Instances",0]
[null,"INSTANCE-m.medium",2,8,40,null,9.1966666666666655E-2,66.215999999999994,null,"Instances",0]
[null,"INSTANCE-m.large",4,16,40,null,0.1661333333333333,119.61599999999999,null,"Instances",0]
[null,"INSTANCE-m.xlarge",8,32,40,null,{"$f":"H34/720","v":0.31446666666666662},{"$f":"C34*IAAS_vcpu_EUR+D34*IAAS_ram_EUR+E34*IAAS_ssd_EUR","v":226.41599999999997},null,{"$f":"J33","v":"Instances"},0]
[null,"INSTANCE-m.2xlarge",16,64,40,null,0.6111333333333332,{"$f":"C35*IAAS_vcpu_EUR+D35*IAAS_ram_EUR+E35*IAAS_ssd_EUR","v":440.01599999999991},null,{"$f":"J34","v":"Instances"},0]
[null,"INSTANCE-m.4xlarge",32,128,40,null,1.2044666666666666,867.21599999999989,null,{"$f":"J35","v":"Instances"},0]
[null,"INSTANCE-m.8xlarge",64,256,40,null,2.3911333333333329,{"$f":"C37*IAAS_vcpu_EUR+D37*IAAS_ram_EUR+E37*IAAS_ssd_EUR","v":1721.6159999999998},null,{"$f":"J36","v":"Instances"},0]
[null,"Total",{"$f":"SUM(C25:C37*I25:I37)","v":0},{"$f":"SUM(D25:D37*I25:I37)","v":0},{"$f":"SUM(E25:E37*I25:I37)","v":0},null,null,null,{"$f":"SUM(I25:I37)","v":0},null,{"$f":"SUM(K25:K37)&\" €\"","v":"0 €"}]
[]
[]
[null,"Instances with local storage (NVMe)"]
[null,"Product ID","vCPU","RAM (GB)","NVME (GB)",null,"Hourly","Monthly (30 days)","Instances",null,"Infrastructure"]
[null,"INSTANCE-lb.tiny",1,1,10,null,{"$f":"H43/720","v":1.7923611111111109E-2},{"$f":"C43*IAAS_vcpu_EUR+D43*IAAS_ram_EUR+E43*IAAS_nvme_EUR","v":12.904999999999999},null,{"$f":"J37","v":"Instances"},{"$f":"ROUNDUP(I43*H43,2)","v":0}]
[null,"INSTANCE-lb.small",1,2,20,null,2.595833333333333E-2,18.689999999999998,null,{"$f":"J43","v":"Instances"},0]
[null,"INSTANCE-lb.medium.1d",2,4,250,null,7.7874999999999986E-2,56.069999999999993,null,{"$f":"J44","v":"Instances"},0]
[null,"INSTANCE-lb.large.1d",4,8,250,null,0.12484722222222221,89.889999999999986,null,"Instances",0]
[null,"INSTANCE-lb.xlarge.1d",8,16,250,null,0.21879166666666663,157.52999999999997,null,"Instances",0]
[null,"INSTANCE-lb.2xlarge.1d",16,32,250,null,0.40668055555555549,292.80999999999995,null,"Instances",0]
[null,"INSTANCE-lb.2xlarge.2d",16,32,500,null,0.43758333333333327,315.05999999999995,null,"Instances",0]
[null,"INSTANCE-lb.2xlarge.4d",16,32,1000,null,0.49938888888888883,359.55999999999995,null,"Instances",0]
[null,"INSTANCE-lb.4xlarge.1d",32,64,250,null,0.78245833333333314,563.36999999999989,null,"Instances",0]
[null,"INSTANCE-lb.4xlarge.2d",32,64,500,null,0.81336111111111098,585.61999999999989,null,{"$f":"J47","v":"Instances"},0]
[null,"INSTANCE-lb.4xlarge.4d",32,64,1000,null,0.87516666666666654,630.11999999999989,null,"Instances",0]
[null,"INSTANCE-lm.small",1,4,20,null,3.9555555555555552E-2,28.479999999999997,null,"Instances",0]
[null,"INSTANCE-lm.medium.1d",2,8,250,null,0.10506944444444444,75.649999999999991,null,"Instances",0]
[null,"INSTANCE-lm.large.1d",4,16,250,null,0.1792361111111111,129.04999999999998,null,"Instances",0]
[null,"INSTANCE-lm.xlarge.1d",8,32,250,null,0.32756944444444441,235.84999999999997,null,"Instances",0]
[null,"INSTANCE-lm.xlarge.2d",8,32,500,null,0.35847222222222219,258.09999999999997,null,"Instances",0]
[null,"INSTANCE-lm.xlarge.4d",8,32,1000,null,0.42027777777777775,302.59999999999997,null,"Instances",0]
[null,"INSTANCE-lm.2xlarge.1d",16,64,250,null,0.62423611111111099,449.44999999999993,null,"Instances",0]
[null,"INSTANCE-lm.2xlarge.2d",16,64,500,null,0.65513888888888883,471.69999999999993,null,"Instances",0]
[null,"INSTANCE-lm.2xlarge.4d",16,64,1000,null,{"$f":"H62/720","v":0.71694444444444438},{"$f":"C62*IAAS_vcpu_EUR+D62*IAAS_ram_EUR+E62*IAAS_nvme_EUR","v":516.19999999999993},null,"Instances",0]
[null,"INSTANCE-lm.4xlarge.1d",32,128,250,null,1.2175694444444443,876.64999999999986,null,"Instances",0]
[null,"INSTANCE-lm.4xlarge.2d",32,128,500,null,1.248472222222222,898.89999999999986,null,"Instances",0]
[null,"INSTANCE-lm.4xlarge.4d",32,128,1000,null,1.3102777777777777,943.39999999999986,null,"Instances",0]
[null,"INSTANCE-lm.8xlarge.4d",64,256,1000,null,{"$f":"H66/720","v":2.496944444444444},{"$f":"C66*IAAS_vcpu_EUR+D66*IAAS_ram_EUR+E66*IAAS_nvme_EUR","v":1797.7999999999997},null,"Instances",0]
[null,"Total",{"$f":"SUM(C43:C66*I43:I66)","v":0},{"$f":"SUM(D43:D66*I43:I66)","v":0},{"$f":"SUM(E43:E66*I43:I66)","v":0},null,null,null,{"$f":"SUM(I43:I66)","v":0},null,{"$f":"SUM(K43:K65)","v":0}]
[]
[]
[null,"Instances with GPU and local storage (NVMe)"]
[null,"Product ID","vCPU","RAM (GB)","NVME (GB)","GPU","Hourly","Monthly","Instances","Windows licenses",null,"Infrastructure","Licenses"]
[null,"INSTANCE-glm.large.1d",4,16,250,1,{"$f":"H72/720","v":0.85909722222222218},{"$f":"C72*IAAS_vcpu_EUR+D72*IAAS_ram_EUR+E72*IAAS_nvme_EUR+F72*IAAS_gpu_EUR","v":618.54999999999995},null,null,{"$f":"J61","v":"Instances"},{"$f":"ROUNDUP(I72*H72,2)","v":0},{"$f":"J72*C72*SW_win.ser.201X_EUR","v":0}]
[null,"INSTANCE-glm.xlarge.2d",8,32,500,2,1.7181944444444444,{"$f":"C73*IAAS_vcpu_EUR+D73*IAAS_ram_EUR+E73*IAAS_nvme_EUR+F73*IAAS_gpu_EUR","v":1237.0999999999999},null,null,{"$f":"J62","v":"Instances"},{"$f":"ROUNDUP(I73*H73,2)","v":0},{"$f":"J73*C73*SW_win.ser.201X_EUR","v":0}]
[null,"INSTANCE-glm.2xlarge.4d",16,64,1000,4,3.4363888888888887,{"$f":"C74*IAAS_vcpu_EUR+D74*IAAS_ram_EUR+E74*IAAS_nvme_EUR+F74*IAAS_gpu_EUR","v":2474.1999999999998},null,null,{"$f":"J63","v":"Instances"},{"$f":"ROUNDUP(I74*H74,2)","v":0},{"$f":"J74*C74*SW_win.ser.201X_EUR","v":0}]
[null,"INSTANCE-glm.4xlarge.8d",32,128,1000,6,5.389444444444444,{"$f":"C75*IAAS_vcpu_EUR+D75*IAAS_ram_EUR+E75*IAAS_nvme_EUR+F75*IAAS_gpu_EUR","v":3880.3999999999996},null,null,{"$f":"J64","v":"Instances"},{"$f":"ROUNDUP(I75*H75,2)","v":0},{"$f":"J75*C75*SW_win.ser.201X_EUR","v":0}]
[null,"Total",{"$nulls":6},{"$f":"SUM(I72:I75)","v":0},{"$f":"SUM(J72:J75)","v":0},null,{"$f":"SUM(L72:L75)","v":0},{"$f":"SUM(M72:M75)","v":0}]
[]
[]
[null,"Bare Metal compute "]
[null,"Product ID","vCPU","RAM (GB)","NVME (GB)",null,"Hourly","Monthly","Instances","Windows licenses",null,"Infrastructure","Licenses"]
[null,"INSTANCE-p1.2xlarge.16d",16,128,3800,null,{"$f":"H81/720","v":0.84550000000000003},{"$f":"INSTANCE_p1.2xlarge.16d_EUR","v":608.76},null,null,"Instanser",{"$f":"ROUNDUP(I81*H81,2)","v":0},{"$f":"J81*C81*SW_win.ser.201X_EUR","v":0}]
[null,"INSTANCE-p1.4xlarge.16d",32,256,3800,null,1.6910000000000001,{"$f":"INSTANCE_p1.4xlarge.16d_EUR","v":1217.52},null,null,{"$f":"K81","v":"Instanser"},{"$f":"ROUNDUP(I82*H82,2)","v":0},{"$f":"J82*C82*SW_win.ser.201X_EUR","v":0}]
[null,"INSTANCE-p1.8xlarge.32d",64,512,7600,null,3.3820000000000001,{"$f":"INSTANCE_p1.8xlarge.32d_EUR","v":2435.04},null,null,"Instanser",{"$f":"ROUNDUP(I83*H83,2)","v":0},{"$f":"J83*C83*SW_win.ser.201X_EUR","v":0}]
[null,"Total",{"$nulls":6},{"$f":"SUM(I81:I83)","v":0},{"$f":"SUM(J81:J83)","v":0},null,{"$f":"SUM(L81:L83)","v":0},{"$f":"SUM(M81:M83)","v":0}]
[]
[]
[null,"Extra Storage"]
[null,"Product ID","Description",null,"Hourly","Per GB / Monthly",null,null,"Extra GB"]
[null,"VOLUME-large","HDD-backed 3-replica Ceph",null,{"$f":"F89/720","v":1.4833333333333332E-4},{"$f":"VOLUME_large_EUR","v":0.10679999999999999},null,null,null,"GB",{"$f":"ROUNDUP(I89*F89,2)","v":0}]
[null,"VOLUME-fast","SSD-backed 3-replica Ceph",null,{"$f":"F90/720","v":4.4500000000000003E-4},{"$f":"VOLUME_fast_EUR","v":0.32040000000000002},null,null,null,"GB",{"$f":"ROUNDUP(I90*F90,2)","v":0}]
[null,"Total",{"$nulls":6},{"$f":"SUM(I89:I90)&\" GB\"","v":"0 GB"},null,{"$f":"SUM(K89:K90)","v":0}]
[]
[]
[]
[null,"Safespring Storage"]
[]
[]
[null,"  Object storage with S3 standard."]
[null,"Price model based on the amount of terabyte stored at Safespring Storage"]
[null,"   Instructions: \nEnter the desired amount in the colored fields"]
[]
[null,"Product ID","Amount of TB","Per TB/monthly",null,null,null,"Amount of TB",{"$nulls":4},"Storage"]
[null,"S3-storage",null,null,{"$f":"_xlfn.IFS(H103<50,D104,H103<100,D105,H103<500,D106,H103<1000,D107,H103>999,D108)","v":31.15},null,null,0,"TB",null,null,null,{"$f":"_xlfn.IFS(H103<1000,ROUNDUP(H103*E103,2),H103>999,E103)","v":0}]
[null,"S3-storage","0 - 49",{"$f":"S3_storage.50_EUR","v":31.15}]
[null,"S3-storage","50 - 99",{"$f":"S3_storage.100_EUR","v":24.029999999999998}]
[null,"S3-storage","100 - 499",{"$f":"S3_storage.500_EUR","v":17.8}]
[null,"S3-storage","500 - 999",{"$f":"S3_storage.1000_EUR","v":16.465}]
[null,"S3-storage","1000 - ",{"$f":"S3_storage.quote_EUR","v":"Request a quote"}]
[null,"  Total",{"$nulls":10},{"$f":"M103","v":0}]
[]
[null,"Product ID","Amount of TB","Per TB/monthly",null,null,null,"Amount of TB"]
[null,"S3-archive",null,null,{"$f":"_xlfn.IFS(H112<50,D113,H112<100,D114,H112<500,D115,H112<1000,D116,H112>999,D117)","v":31.15},null,null,0,"TB",null,null,null,{"$f":"_xlfn.IFS(H112<1000,ROUNDUP(H112*E112,2),H112>999,E112)","v":0}]
[null,"S3-archive","0 - 49",{"$f":"S3_archive.50_EUR","v":31.15}]
[null,"S3-archive","50 - 99",{"$f":"S3_archive.100_EUR","v":24.029999999999998}]
[null,"S3-archive","100 - 499",{"$f":"S3_archive.500_EUR","v":17.8}]
[null,"S3-archive","500 - 999",{"$f":"S3_archive.1000_EUR","v":16.465}]
[null,"S3-archive","1000 - ",{"$f":"S3_archive.quote_EUR","v":"Request a quote"}]
[null,"  Total",{"$nulls":10},{"$f":"M112","v":0}]
[]
[]
[]
[null,"Safespring Backup"]
[]
[]
[null,"Cloud backup solution for on-prem or cloud servers based on Spectrum Protect."]
[null,"All prices are in EUR, excluding VAT."]
[null,"   Instructions: \nEnter the desired amount in the colored fields"]
[]
[null,"Product ID",null,"Monthly fee",null,"Per GB/month",null,"Antal GB",null,"Deduplication*",null,null,"Pris"]
[null,"BAAS-on.demand **",null,"N/A",null,{"$f":"BAAS_on.demand_EUR","v":0.21804999999999999},null,0,"GB","N/A",null,null,{"$f":"ROUNDUP(H130*F130,2)","v":0}]
[null,"BAAS-small ****",null,{"$f":"BAAS_small.fee_EUR","v":489.5},null,{"$f":"BAAS_small_EUR","v":0.15575},null,0,"GB",0.75,null,null,{"$f":"IF(H131>0,IF(SUM($D$131+($F$131*((H131*(1-$J$131))-1000)))<=D131,$D$131,$D$131+($F$131*((H131*(1-$J$131))-1000))),0)","v":0}]
[null,"BAAS-large ***",null,{"$f":"BAAS_large.fee_EUR","v":845.5},null,{"$f":"BAAS_large_EUR","v":8.1879999999999994E-2},null,0,"GB",0.75,null,null,{"$f":"IF(H132>0,$D$132+($F$132*(H132*(1-$J$132))),0)","v":0}]
[null,"  Total",{"$nulls":5},{"$f":"SUM(H130:H132)&\" GB\"","v":"0 GB"},{"$nulls":4},{"$f":"SUM(M130:M132)","v":0}]
[]
[null,"* Deduplication is a data reduction done in the service. Depending on the data, it usually varies between 45% -90%"]
[null,"** The price is per protected GB on the client."]
[null,"*** The price is per GB stored in the service after deduplication and compression."]
[null,"**** The price is per GB stored in the service after deduplication and compression. The service includes 1000GB in the fixed monthly price."]
[]
[]
[]
[]
[null,"Network and software"]
[]
[]
[null,"All prices are in EUR, excluding VAT."]
[]
[]
[null,"Network"]
[null,"Product ID"," Type",null,"Description",{"$nulls":5},"Charge per","Monthly"]
[null,"NET-publicv4","IPv4",null,"Public",{"$nulls":5},"IP-adress",{"$f":"NET_publicv4_EUR","v":2.2250000000000001}]
[null,"NET-publicv6","IPv6",null,"Public",{"$nulls":5},"N/A",{"$f":"NET_publicv6_EUR","v":0}]
[null,"NET-ingress","Data transfer",{"$nulls":7},"GB",{"$f":"NET_ingress_EUR","v":0}]
[null,"NET-egress","Data transfer",null,"1 TB / month included per project (no charges for the academic sector)",{"$nulls":5},"GB",{"$f":"NET_egress_EUR","v":0}]
[null,"NET-mgn.slb","Managed SLB ",{"$nulls":7},"Instance",{"$f":"NET_mgn.slb_EUR","v":"Request a quote"}]
[null,"NET-rdns","Reverse DNS names",{"$nulls":7},"N/A",{"$f":"NET_rdns_EUR","v":0}]
[null,"NET-byoip","Bring your own IP prefixes",{"$nulls":7},"N/A",{"$f":"NET_byoip_EUR","v":0}]
[]
[]
[null,"Product ID",null,null,"Description",{"$nulls":5},"Charge per","Monthly"]
[null,"SW-win.ser.2016",null,null,"Windows Server 2016",{"$nulls":5},"vCPU",{"$f":"SW_win.ser.201X_EUR","v":15.574999999999999}]
[null,"SW-win.ser.2019",null,null,"Windows Server 2019",{"$nulls":5},"vCPU",{"$f":"SW_win.ser.201X_EUR","v":15.574999999999999}]
[null,"SW-ms.sql.ser",null,null,"Microsoft SQL Server",{"$nulls":5},"vCPU",{"$f":"SW_ms.sql.ser_EUR","v":109.381}]
[null,"SW-stackn",null,null,"STACKn (Machine Learning), supported by provider",{"$nulls":5},"Instance",{"$f":"SW_stackn_EUR","v":"Request a quote"}]
[null,"SW-nextcloud",null,null,"Nextcloud Filesharing",{"$nulls":5},"N/A",{"$f":"SW_nextcloud_EUR","v":"Request a quote"}]
[null,"SW-suse.linux",null,null,"SUSE Linux Enterprise Server, 12x5 Support",{"$nulls":5},"N/A",{"$f":"SW_suse_EUR","v":"Request a quote"}]
[null,"SW-cluster.control",null,null,"Cluster Control Supported",{"$nulls":5},"Instance",{"$f":"SW_cluster.control_EUR","v":"3x instance price"}]
[null,"SW-backup.ninja",null,null,"Backup Ninja",{"$nulls":5},"Databas",{"$f":"SW_backup.ninja_EUR","v":35.6}]
[]
[]
[null,"Platform services"]
[null,"Product ID",null,null,"Description",{"$nulls":5},"Charge per","Monthly"]
[null,"PAAS-man.kubernetes24",null,null,"Managed Compliant Kubernetes 24/7",{"$nulls":6},{"$f":"PAAS_man.kubernetes24_EUR","v":" Requests for quotation "}]
[null,"PAAS-man.kubernetes8",null,null,"Managed Compliant Kubernetes 8/5",{"$nulls":6},{"$f":"PAAS_man.kubernetes8_EUR","v":"Requests for quotation"}]
[null,"PAAS-man.elasticsearch",null,null,"Managed Elasticsearch + Grafana service",{"$nulls":5},"Instance",{"$f":"PAAS_man.elasticsearch_EUR","v":"Requests for quotation"}]
[null,"PAAS-man.redis",null,null,"Managed Redis",{"$nulls":5},"Redis server",{"$f":"PAAS_man.redis_EUR","v":"Requests for quotation"}]
[null,"PAAS-man.nats",null,null,"Managed NATS",{"$nulls":5},"Nats server",{"$f":"PAAS_man.nats_EUR","v":"Requests for quotation"}]
[null,"PAAS-man.mariadb",null,null,"Managed MariaDB",{"$nulls":5},"Database",{"$f":"PAAS_man.mariadb_EUR","v":"Requests for quotation"}]
[]
[]
[]
[null,"Support and consulting"]
[]
[]
[null,"All prices are in EUR, excluding VAT."]
[]
[]
[null,"Support"]
[null,"Product ID",null,null,"Description",{"$nulls":5},"Charge per","Monthly"]
[null,"SUPPORT-iaas.base",null,null,"Base IaaS Support",{"$nulls":5},"N/A",0]
[null,"SUPPORT-standard",null,null,"Access to backchannel chat room with support and engineering",{"$nulls":5},"Total volume","3 % of total volume"]
[null,"SUPPORT-premium",null,null,"Dedicated Service Manager with quarterly operations meetings",{"$nulls":5},"Hour","Ask for quote"]
[{"$nulls":4},"* The support fee is charged at 3 % of the total volume with a minimum fee of 150 Euro per month."]
[]
[null,"Consulting"]
[null,"Product ID",null,null,"Description",{"$nulls":5},"Charge per","Monthly"]
[null,"PS-consult.jun",null,null,"Cloud Infrastructure Consultant, junior expertise level",{"$nulls":5},"Hour",{"$f":"PS_consult.jun_EUR","v":100.303}]
[null,"PS-consult.sen",null,null,"Cloud infrastructure Consultant, senior expertise level",{"$nulls":5},"Hour",{"$f":"PS_consult.sen_EUR","v":122.28599999999999}]
[null,"PS-cloudarch.jun",null,null,"Cloud Infrastructure Architect Consultant, junior expertise level",{"$nulls":5},"Hour",{"$f":"PS_cloudarch.jun_EUR","v":113.65299999999999}]
[null,"PS-cloudarch.sen",null,null,"Cloud Infrastructure Architect Consultant, senior expertise level",{"$nulls":5},"Hour",{"$f":"PS_cloudarch.sen_EUR","v":122.28599999999999}]
[null,"PS-pm.jun",null,null,"Project Manager, junior expertise level",{"$nulls":5},"Hour",{"$f":"PS_pm.jun_EUR","v":101.371}]
[null,"PS-pm.sen",null,null,"Project Manager, senior expertise level",{"$nulls":5},"Hour",{"$f":"PS_pm.sen_EUR","v":122.28599999999999}]
[]
[]
[null,"Training"]
[null,"Product ID","Duration",null,"Description",{"$nulls":5},"Charge per","Price"]
[null,"TRAIN-intro.iaas","One day",null,"Introduction to \"infrastructure as a service\"",{"$nulls":5},"Occasion","Ask for quote"]
[null,"TRAIN-cxo.strategy","One day",null,"Cloud strategy for top management",{"$nulls":5},"Occasion","Ask for quote"]
[null,"TRAIN-intro.cloud","Four days",null,"Introduction to cloud computing",{"$nulls":5},"Occasion","Ask for quote"]
[null,"TRAIN-devops.microservices","Four days",null,"Modern DevOps and microservices",{"$nulls":5},"Occasion","Ask for quote"]
[]
[]
[]
[]
[]
[]
[null,"Calculated price"]
[]
[]
[null,"All prices are in EUR, excluding VAT."]
[]
[null,"Contact Safespring for a full quote"]
[null,"Phone: +46 855 10 73 56"]
[null,"sales@safespring.se"]
[]
[null,"  Product",{"$nulls":9},"Montly"]
[null,"  Safespring Compute",{"$f":"SUM(C38+C67)&\" vCPU\"","v":"0 vCPU"},{"$f":"SUM(D38+D67)&\" GB RAM\"","v":"0 GB RAM"},{"$f":"SUM(E38)&\" GB  Disk\"","v":"0 GB  Disk"},{"$f":"SUM(E67)&\" GB NVME-Disk\"","v":"0 GB NVME-Disk"},{"$nulls":5},{"$f":"L76+L84+K67+K38+K91","v":0}]
[null,"  Safespring Storage",{"$nulls":9},{"$f":"#REF!","v":{"$error":"#REF!"}}]
[null,"  Safespring Backup",{"$nulls":9},{"$f":"M133","v":0}]
[null,"  Licenses (Microsoft)",{"$nulls":9},{"$f":"M76+M84+#REF!+#REF!","v":{"$error":"#REF!"}}]
[null,"Total",{"$nulls":9},{"$f":"SUM(L227:L230)","v":{"$error":"#REF!"}}]

{"sheet":"NOK - Safespring tjenester 2023","index":3,"n_rows":243,"n_cols":11,"rows_kept":243,"cut":false,"hidden":false,"merged":[[101,3,101,4],[101,5,101,6],[101,7,101,8],[3,1,3,2],[14,1,16,6],[18,1,18,5],[59,1,59,4],[69,1,69,4],[86,1,88,6],[99,3,99,4],[99,5,99,6],[99,7,99,8],[23,1,23,4],[44,1,44,4],[102,3,102,4],[102,5,102,6],[102,7,102,8],[103,3,103,4],[103,5,103,6],[103,7,103,8],[104,3,104,4],[104,5,104,6],[104,7,104,8],[105,3,105,4],[105,5,105,6],[105,7,105,8],[109,1,111,6],[124,1,126,6],[131,2,131,3],[131,4,131,5],[131,6,131,7],[185,1,185,5],[186,1,186,5],[220,1,222,6],[223,1,223,5],[113,1,113,5],[128,1,128,5],[141,1,141,5],[133,2,133,3],[133,4,133,5],[133,6,133,7],[138,1,140,6],[142,1,142,5],[182,1,184,6],[132,2,132,3],[132,4,132,5],[132,6,132,7]]}
[]
[]
[]
[]
[null,"Priskalkulator 02.27.2024"]
[]
[]
[null,"Kontakt Safespring",null,"Valuta"]
[null,"Telefon: +47 35 68 88 70"]
[null,"hello@safespring.com"]
[]
[]
[]
[]
[null,"Safespring Compute | IaaS"]
[]
[]
[null,"Infrastruktur kan kjøres med en gratis Open Source-lisens eller med en Windows-lisens."]
[null,"Alle priser er oppgitt i NOK, eks mva."]
[null,"Instruksjoner: Angi ønsket antall i de fargede feltene."]
[]
[]
[null,"Flavors med lokal NVMe-disk"]
[null,"Sentral blokklagring kan kjøpes til innsatsene. Se \"Sentral blokklagring\" i prislisten."]
[null,"Produkt ID","vCPU","RAM (GB)","Lokal disk (GB)","Per time","Per 30 dager",null,"Antall",null,"Infrastruktur"]
[null,{"$f":"'SEK - Safesprings tjänster 2023'!B26","v":"FLAVOR-l2. c2 r4. 100"},{"$f":"'SEK - Safesprings tjänster 2023'!C26","v":2},{"$f":"'SEK - Safesprings tjänster 2023'!D26","v":4},{"$f":"'SEK - Safesprings tjänster 2023'!E26","v":100},{"$f":"G26/720","v":0.66666666666666663},{"$f":"C26*IAAS_vcpu_SEK+D26*IAAS_ram_SEK+E26*IAAS_nvme_SEK","v":480},null,null,null,{"$f":"ROUNDUP(I26*G26,2)","v":0}]
[null,{"$f":"'SEK - Safesprings tjänster 2023'!B27","v":"FLAVOR-l2. c2 r4. 500"},{"$f":"'SEK - Safesprings tjänster 2023'!C27","v":2},{"$f":"'SEK - Safesprings tjänster 2023'!D27","v":4},{"$f":"'SEK - Safesprings tjänster 2023'!E27","v":500},1.2222222222222223,880,null,null,null,0]
[null,{"$f":"'SEK - Safesprings tjänster 2023'!B28","v":"FLAVOR-l2. c2 r4. 1000"},{"$f":"'SEK - Safesprings tjänster 2023'!C28","v":2},{"$f":"'SEK - Safesprings tjänster 2023'!D28","v":4},{"$f":"'SEK - Safesprings tjänster 2023'!E28","v":1000},1.9166666666666667,1380,null,null,null,0]
[null,{"$f":"'SEK - Safesprings tjänster 2023'!B29","v":"FLAVOR-l2. c4 r8. 100"},{"$f":"'SEK - Safesprings tjänster 2023'!C29","v":4},{"$f":"'SEK - Safesprings tjänster 2023'!D29","v":8},{"$f":"'SEK - Safesprings tjänster 2023'!E29","v":100},1.1944444444444444,860,null,null,null,0]
[null,{"$f":"'SEK - Safesprings tjänster 2023'!B30","v":"FLAVOR-l2. c4 r8. 500"},{"$f":"'SEK - Safesprings tjänster 2023'!C30","v":4},{"$f":"'SEK - Safesprings tjänster 2023'!D30","v":8},{"$f":"'SEK - Safesprings tjänster 2023'!E30","v":500},1.75,1260,null,null,null,0]
[null,{"$f":"'SEK - Safesprings tjänster 2023'!B31","v":"FLAVOR-l2. c4 r8. 1000"},{"$f":"'SEK - Safesprings tjänster 2023'!C31","v":4},{"$f":"'SEK - Safesprings tjänster 2023'!D31","v":8},{"$f":"'SEK - Safesprings tjänster 2023'!E31","v":1000},2.4444444444444446,1760,null,null,null,0]
[null,{"$f":"'SEK - Safesprings tjänster 2023'!B32","v":"FLAVOR-l2. c8 r16. 100"},{"$f":"'SEK - Safesprings tjänster 2023'!C32","v":8},{"$f":"'SEK - Safesprings tjänster 2023'!D32","v":16},{"$f":"'SEK - Safesprings tjänster 2023'!E32","v":100},2.25,1620,null,null,null,0]
[null,{"$f":"'SEK - Safesprings tjänster 2023'!B33","v":"FLAVOR-l2. c8 r16. 500"},{"$f":"'SEK - Safesprings tjänster 2023'!C33","v":8},{"$f":"'SEK - Safesprings tjänster 2023'!D33","v":16},{"$f":"'SEK - Safesprings tjänster 2023'!E33","v":500},2.8055555555555554,2020,null,null,null,0]
[null,{"$f":"'SEK - Safesprings tjänster 2023'!B34","v":"FLAVOR-l2. c8 r16. 1000"},{"$f":"'SEK - Safesprings tjänster 2023'!C34","v":8},{"$f":"'SEK - Safesprings tjänster 2023'!D34","v":16},{"$f":"'SEK - Safesprings tjänster 2023'!E34","v":1000},3.5,2520,null,null,null,0]
[null,{"$f":"'SEK - Safesprings tjänster 2023'!B35","v":"FLAVOR-l2. c16 r32. 100"},{"$f":"'SEK - Safesprings tjänster 2023'!C35","v":16},{"$f":"'SEK - Safesprings tjänster 2023'!D35","v":32},{"$f":"'SEK - Safesprings tjänster 2023'!E35","v":100},{"$f":"G35/720","v":4.3611111111111107},{"$f":"C35*IAAS_vcpu_SEK+D35*IAAS_ram_SEK+E35*IAAS_nvme_SEK","v":3140},null,null,null,{"$f":"ROUNDUP(I35*G35,2)","v":0}]
[null,{"$f":"'SEK - Safesprings tjänster 2023'!B36","v":"FLAVOR-l2. c16 r32. 500"},{"$f":"'SEK - Safesprings tjänster 2023'!C36","v":16},{"$f":"'SEK - Safesprings tjänster 2023'!D36","v":32},{"$f":"'SEK - Safesprings tjänster 2023'!E36","v":500},4.916666666666667,3540,null,null,null,0]
[null,{"$f":"'SEK - Safesprings tjänster 2023'!B37","v":"FLAVOR-l2. c16 r32. 1000"},{"$f":"'SEK - Safesprings tjänster 2023'!C37","v":16},{"$f":"'SEK - Safesprings tjänster 2023'!D37","v":32},{"$f":"'SEK - Safesprings tjänster 2023'!E37","v":1000},5.6111111111111107,4040,null,null,null,0]
[null,{"$f":"'SEK - Safesprings tjänster 2023'!B38","v":"FLAVOR-l2. c16 r64. 500"},{"$f":"'SEK - Safesprings tjänster 2023'!C38","v":16},{"$f":"'SEK - Safesprings tjänster 2023'!D38","v":64},{"$f":"'SEK - Safesprings tjänster 2023'!E38","v":500},{"$f":"G38/720","v":7.3611111111111107},{"$f":"C38*IAAS_vcpu_SEK+D38*IAAS_ram_SEK+E38*IAAS_nvme_SEK","v":5300},null,null,null,{"$f":"ROUNDUP(I38*G38,2)","v":0}]
[null,{"$f":"'SEK - Safesprings tjänster 2023'!B39","v":"FLAVOR-l2. c32 r64.1000"},{"$f":"'SEK - Safesprings tjänster 2023'!C39","v":32},{"$f":"'SEK - Safesprings tjänster 2023'!D39","v":64},{"$f":"'SEK - Safesprings tjänster 2023'!E39","v":1000},9.8333333333333339,7080,null,null,null,0]
[null,"Totalt",{"$f":"SUM(C26:C39*I26:I39)&\" st\"","v":"0 st"},{"$f":"SUM(D26:D39*I26:I39)&\" GB\"","v":"0 GB"},{"$f":"SUM(E26:E39*I26:I39)&\" GB\"","v":"0 GB"},null,null,null,{"$f":"SUM(I26:I39)&\" st\"","v":"0 st"},null,{"$f":"SUM(K26:K39)","v":0}]
[]
[]
[]
[null,"Flavors utan lokal disk"]
[null,"Sentral blokklagring kan kjøpes til instansene. Se \"Sentral blokklagring\" i prislisten."]
[null,"Produkt ID","vCPU","RAM (GB)","Lokal disk (GB)","Per time","Per 30 dager",null,"Antall",null,"Infrastruktur"]
[null,{"$f":"'SEK - Safesprings tjänster 2023'!B47","v":"FLAVOR-b2. c1 r2"},{"$f":"'SEK - Safesprings tjänster 2023'!C47","v":1},{"$f":"'SEK - Safesprings tjänster 2023'!D47","v":2},{"$f":"'SEK - Safesprings tjänster 2023'!E47","v":0},{"$f":"G47/720","v":0.2638888888888889},{"$f":"C47*IAAS_vcpu_SEK+D47*IAAS_ram_SEK+E47*IAAS_ssd_SEK","v":190},null,null,null,{"$f":"ROUNDUP(I47*G47,2)","v":0}]
[null,{"$f":"'SEK - Safesprings tjänster 2023'!B48","v":"FLAVOR-b2. c1 r4"},{"$f":"'SEK - Safesprings tjänster 2023'!C48","v":1},{"$f":"'SEK - Safesprings tjänster 2023'!D48","v":4},{"$f":"'SEK - Safesprings tjänster 2023'!E48","v":0},0.41666666666666669,300,null,null,null,0]
[null,{"$f":"'SEK - Safesprings tjänster 2023'!B49","v":"FLAVOR-b2. c2 r4"},{"$f":"'SEK - Safesprings tjänster 2023'!C49","v":2},{"$f":"'SEK - Safesprings tjänster 2023'!D49","v":4},{"$f":"'SEK - Safesprings tjänster 2023'!E49","v":0},0.52777777777777779,380,null,null,null,0]
[null,{"$f":"'SEK - Safesprings tjänster 2023'!B50","v":"FLAVOR-b2. c2 r8"},{"$f":"'SEK - Safesprings tjänster 2023'!C50","v":2},{"$f":"'SEK - Safesprings tjänster 2023'!D50","v":8},{"$f":"'SEK - Safesprings tjänster 2023'!E50","v":0},0.83333333333333337,600,null,null,null,0]
[null,{"$f":"'SEK - Safesprings tjänster 2023'!B51","v":"FLAVOR-b2 .c4 r8"},{"$f":"'SEK - Safesprings tjänster 2023'!C51","v":4},{"$f":"'SEK - Safesprings tjänster 2023'!D51","v":8},{"$f":"'SEK - Safesprings tjänster 2023'!E51","v":0},{"$f":"G51/720","v":1.0555555555555556},{"$f":"C51*IAAS_vcpu_SEK+D51*IAAS_ram_SEK+E51*IAAS_ssd_SEK","v":760},null,null,null,{"$f":"ROUNDUP(I51*G51,2)","v":0}]
[null,{"$f":"'SEK - Safesprings tjänster 2023'!B52","v":"FLAVOR-b2. c4 r16"},{"$f":"'SEK - Safesprings tjänster 2023'!C52","v":4},{"$f":"'SEK - Safesprings tjänster 2023'!D52","v":16},{"$f":"'SEK - Safesprings tjänster 2023'!E52","v":0},1.6666666666666667,1200,null,null,null,0]
[null,{"$f":"'SEK - Safesprings tjänster 2023'!B53","v":"FLAVOR-b2. c8 r16"},{"$f":"'SEK - Safesprings tjänster 2023'!C53","v":8},{"$f":"'SEK - Safesprings tjänster 2023'!D53","v":16},{"$f":"'SEK - Safesprings tjänster 2023'!E53","v":0},2.1111111111111112,1520,null,null,null,0]
[null,{"$f":"'SEK - Safesprings tjänster 2023'!B54","v":"FLAVOR-b2. c8 r32"},{"$f":"'SEK - Safesprings tjänster 2023'!C54","v":8},{"$f":"'SEK - Safesprings tjänster 2023'!D54","v":32},{"$f":"'SEK - Safesprings tjänster 2023'!E54","v":0},3.3333333333333335,2400,null,null,null,0]
[null,{"$f":"'SEK - Safesprings tjänster 2023'!B55","v":"FLAVOR-b2. c16 r32"},{"$f":"'SEK - Safesprings tjänster 2023'!C55","v":16},{"$f":"'SEK - Safesprings tjänster 2023'!D55","v":32},{"$f":"'SEK - Safesprings tjänster 2023'!E55","v":0},4.2222222222222223,3040,null,null,null,0]
[null,{"$f":"'SEK - Safesprings tjänster 2023'!B56","v":"FLAVOR-b2. c16 r64"},{"$f":"'SEK - Safesprings tjänster 2023'!C56","v":16},{"$f":"'SEK - Safesprings tjänster 2023'!D56","v":64},{"$f":"'SEK - Safesprings tjänster 2023'!E56","v":0},6.666666666666667,4800,null,null,null,0]
[null,"Totalt",{"$f":"SUM(b2_list_vCPU*b2_list_Antal_instanser)&\" st\"","v":"0 st"},{"$f":"SUM(b2_list_ram*b2_list_vCPU)&\" GB\"","v":"0 GB"},"N/A",null,null,null,{"$f":"SUM(I47:I56)&\" st\"","v":"0 st"},null,{"$f":"SUM(K47:K56)","v":0}]
[]
[null,"Instanser med GPU och lokal disk (NVME-disk)"]
[null,"Central blocklagring kan köpas till instansene. Se \"Central blocklagring\" i prislistan."]
[null,"Produkt ID","CPU (p) core","RAM (GB)","NVME (GB)","GPU","Per timme","Per 30 dagar","Antal instanser",null,"Infrastruktur"]
[null,"INSTANCE-glm.large.1d",4,16,250,1,{"$f":"H62/720","v":9.6527777777777786},{"$f":"C62*IAAS_vcpu_SEK+D62*IAAS_ram_SEK+E62*IAAS_nvme_SEK+F62*IAAS_gpu_SEK","v":6950},null,null,{"$f":"ROUNDUP(I62*H62,2)","v":0}]
[null,"INSTANCE-glm.xlarge.2d",8,32,500,2,19.305555555555557,{"$f":"C63*IAAS_vcpu_SEK+D63*IAAS_ram_SEK+E63*IAAS_nvme_SEK+F63*IAAS_gpu_SEK","v":13900},null,null,{"$f":"ROUNDUP(I63*H63,2)","v":0}]
[null,"INSTANCE-glm.2xlarge.4d",16,64,1000,4,38.611111111111114,{"$f":"C64*IAAS_vcpu_SEK+D64*IAAS_ram_SEK+E64*IAAS_nvme_SEK+F64*IAAS_gpu_SEK","v":27800},null,null,{"$f":"ROUNDUP(I64*H64,2)","v":0}]
[null,"INSTANCE-glm.4xlarge.8d",32,128,1000,6,60.555555555555557,{"$f":"C65*IAAS_vcpu_SEK+D65*IAAS_ram_SEK+E65*IAAS_nvme_SEK+F65*IAAS_gpu_SEK","v":43600},null,null,{"$f":"ROUNDUP(I65*H65,2)","v":0}]
[null,"Totalt",{"$f":"SUM(I62:I65*C62:C65)&\" st\"","v":"0 st"},{"$f":"SUM(I62:I65*D62:D65)&\" GB\"","v":"0 GB"},{"$f":"SUM(I62:I65*E62:E65)&\" GB\"","v":"0 GB"},{"$f":"SUM(I62:I65*F62:F65)&\" st\"","v":"0 st"},null,null,{"$f":"SUM(I62:I65)&\" st\"","v":"0 st"},null,{"$f":"SUM(K62:K65)","v":0}]
[]
[]
[null,"Bare Metal Compute "]
[null,"Central blocklagring kan köpas till instansene. Se \"Central blocklagring\" i prislistan."]
[null,"Produkt ID","CPU (p) core","RAM (GB)","NVME (GB)","Per timme","Per 30 dagar",null,"Antal",null,"Infrastruktur"]
[null,"INSTANCE-p1.2xlarge.16d",16,128,3800,{"$f":"G72/720","v":9.5},{"$f":"INSTANCE_p1.2xlarge.16d_SEK","v":6840},null,null,null,{"$f":"ROUNDUP(I72*G72,2)","v":0}]
[null,"INSTANCE-p1.4xlarge.16d",32,256,3800,19,{"$f":"INSTANCE_p1.4xlarge.16d_SEK","v":13680},null,null,null,{"$f":"ROUNDUP(I73*G73,2)","v":0}]
[null,"INSTANCE-p1.8xlarge.32d",64,512,7600,38,{"$f":"INSTANCE_p1.8xlarge.32d_SEK","v":27360},null,null,null,{"$f":"ROUNDUP(I74*G74,2)","v":0}]
[null,"Totalt",{"$f":"SUM(I72:I74*C72:C74)&\" st\"","v":"0 st"},{"$f":"SUM(I72:I74*D72:D74)&\" GB\"","v":"0 GB"},{"$f":"SUM(I72:I74*E72:E74)&\" GB\"","v":"0 GB"},null,null,null,{"$f":"SUM(I72:I74)&\" st\"","v":"0 st"},null,{"$f":"SUM(K72:K74)","v":0}]
[]
[]
[null,"Sentral blokklagring"]
[null,"Sentral blokklagring gir tre kopier av dataene distribuert i en robust CEPH-klynge."]
[null,"Produkt ID","Beskrivelse",null,null,"Per timme","Per 30 dagar",null,"Antall (GB)",null,"Blokklagring"]
[null,"VOLUME-large","HDD-backed 3-replica Ceph",null,null,{"$f":"G81/720","v":1.6666666666666666E-3},{"$f":"VOLUME_large_SEK","v":1.2},null,null,null,{"$f":"ROUNDUP(I81*G81,2)","v":0}]
[null,"VOLUME-fast","SSD-backed 3-replica Ceph",null,null,{"$f":"G82/720","v":5.0000000000000001E-3},{"$f":"VOLUME_fast_SEK","v":3.6},null,null,null,{"$f":"ROUNDUP(I82*G82,2)","v":0}]
[null,"VOLUME-snapshot","Snapshot of image",null,null,{"$f":"G83/720","v":1.6666666666666666E-3},{"$f":"VOLUME_large_SEK","v":1.2},null,null,null,{"$f":"ROUNDUP(I83*G83,2)","v":0}]
[null,"Totalt",{"$nulls":6},{"$f":"SUM(I81:I83)&\" GB\"","v":"0 GB"},null,{"$f":"SUM(K81:K83)","v":0}]
[]
[]
[null,"Safespring Storage | S3"]
[]
[]
[null,"Rask objektlagring med standard S3. (Arkiv er tilpasset lengre lagringstider)"]
[null,"Kontakt oss for rabatter på større lagringsmengder. Prismodell basert på antall lagrede TB per måned."]
[null,"Instruksjoner: Angi ønsket antall i de fargede feltene."]
[]
[null,"Produkt ID",{"$nulls":4},"Per TB i 30 dager",null,"Antall (TB)",null,"Storage"]
[null,"S3-archive",{"$nulls":4},{"$f":"S3_archive.50_SEK","v":350},null,null,null,{"$f":"I95*G95","v":0}]
[null,"S3-storage",{"$nulls":4},{"$f":"S3_storage50_SEK","v":500},null,null,null,{"$f":"I96*G96","v":0}]
[null,"Totalt",{"$nulls":8},{"$f":"SUM(K95:K96)","v":0}]
[]
[null,"S3 Archive"]
[null,"Produkt ID","Antal TB","Per TB/månad"]
[null,"S3-archive",null,null,{"$f":"_xlfn.IFS(H101<50,D102,H101<100,D103,H101<500,D104,H101<1000,D105,H101>999,D106)","v":185},null,null,600,"TB",null,{"$f":"_xlfn.IFS(H101<1000,ROUNDUP(H101*E101,2),H101>999,E101)","v":111000}]
[null,"S3-archive","0 - 49",{"$f":"S3_archive.50_SEK","v":350}]
[null,"S3-archive","50 - 99",{"$f":"S3_archive.100_SEK","v":270}]
[null,"S3-archive","100 - 499",{"$f":"S3_archive.500_SEK","v":200}]
[null,"S3-archive","500 - 999",{"$f":"S3_archive.1000_SEK","v":185}]
[null,"S3-archive","1000 - ",{"$f":"S3_archive.quote_SEK","v":"Be om offert"}]
[null,"  Totalt",{"$nulls":8},{"$f":"K101","v":111000}]
[]
[]
[null,"Safespring Backup | SP"]
[]
[]
[null,"Cloud backup-løsning for on-prem eller skyservere basert på Spectrum Protect (TSM)."]
[null,"Alle priser er oppgitt i NOK, eks mva."]
[null,"Instruksjoner: Angi ønsket antall i de fargede feltene."]
[]
[null,"Produkt ID",null,null,"Fast månedlig pris",null,"Per GB i 30 dager",null,"Antall (GB)","Deduplisering 1","Pris"]
[null,"BAAS-on.demand 2",null,null,"N/A",null,{"$f":"BAAS_on.demand_SEK","v":2.4500000000000002},null,null,"N/A",{"$f":"ROUNDUP(I118*G118,2)","v":0}]
[null,"BAAS-small 3",null,null,5500,null,{"$f":"BAAS_small_SEK","v":1.75},null,null,0.75,{"$f":"IF(I119>0,$E$119+($G$119*(I119*(1-$J$119))),0)","v":0}]
[null,"BAAS-large 4",null,null,9500,null,{"$f":"BAAS_large_SEK","v":0.92},null,null,0.75,{"$f":"IF(I120>0,$E$120+($G$120*(I120*(1-$J$120))),0)","v":0}]
[null,"Totalt",{"$nulls":6},{"$f":"SUM(I118:I120)&\" GB\"","v":"0 GB"},null,{"$f":"SUM(K118:K120)","v":0}]
[]
[]
[]
[null,"Compliant Kubernetes"]
[]
[]
[null,"Kjør Compliant Kubernetes som en administrert tjeneste. Safespring Compute vil bli lagt til."]
[null,"Safespring Compute vil bli lagt til. Vi kan samarbeide med deg for å beregne prisen."]
[null,"Instruksjoner: Gjør et valg i de fargede feltene."]
[]
[null,"Produkt ID","Støttetider",null,"Tilgjengelighet",null,"Fast månedlig pris",null,null,null,"Pris"]
[null,"PAAS-man.kubernetes8","08:00 - 17:00",null,"Hverdager",null,15000,null,null,2,{"$f":"IF(J133=1,G133,\" \")","v":" "}]
[null,"PAAS-man.kubernetes24","Døgnet rundt",null,"Alle dager",null,24000,null,null,null,{"$f":"IF(J133=3,G134,\" \")","v":" "}]
[null,"Totalt",{"$nulls":8},{"$f":"SUM(K133:K134)","v":0}]
[]
[]
[]
[null,"Nettverk og programvare"]
[]
[]
[null,"Alle priser er oppgitt i NOK, eks mva."]
[]
[]
[null,"Nettverk"]
[null,"Safespring tilbyr flere nettverkstjenester."]
[null,"Produkt ID","Type",null,"Beskrivelse",{"$nulls":4},"Fakturering pr","Per måned"]
[null,"NET-publicv4","IPv4",null,"Public",{"$nulls":4},"IP-adress",{"$f":"NET_publicv4_SEK","v":25}]
[null,"NET-publicv6","IPv6",null,"Public",{"$nulls":4},"N/A",{"$f":"NET_publicv6_SEK","v":0}]
[null,"NET-ingress","Datatrafikk",{"$nulls":6},"GB",{"$f":"NET_ingress_SEK","v":0}]
[null,"NET-egress","Datatrafikk",{"$nulls":6},"GB",{"$f":"NET_egress_SEK","v":0}]
[null,"NET-mgn.slb","Managed SLB ",null,"Lastbalansere som krever egne servere",{"$nulls":4},"Instans ","Tilbud"]
[null,"NET-rdns","Reverse DNS names",{"$nulls":6},"N/A",{"$f":"NET_rdns_SEK","v":0}]
[null,"NET-byoip","Bring your own IP prefixes",{"$nulls":6},"N/A",0]
[]
[]
[]
[null,"Programvare og lisenser"]
[null,"Safespring tilbyr flere programvare og lisenser."]
[null,"Produkt ID",null,null,"Beskrivelse",{"$nulls":4},"Fakturering pr","Per måned"]
[null,"SW-win.ser.2022",null,null,"Windows Server",{"$nulls":4},"vCPU",{"$f":"SW_win.ser.201X_SEK","v":175}]
[null,"SW-ms.sql.ser",null,null,"Windows SQL Server standard",{"$nulls":4},"vCPU",{"$f":"SW_ms.sql.ser_SEK","v":1229}]
[null,"SW-ms.sql.ser.ent",null,null,"Windows SQL Server Enterprise",{"$nulls":4},"vCPU",{"$f":"SW_ms.sql.ser.ent_SEK","v":4766}]
[null,"SW-nextcloud",null,null,"Nextcloud Filesharing",{"$nulls":4},"N/A","Tillbud"]
[null,"SW-suse.linux",null,null,"SUSE Linux Enterprise Server, 12x5 Support",{"$nulls":4},"N/A","Tillbud"]
[]
[]
[]
[null,"Plattformtjenester"]
[null,"Safespring tilbyr flere plattformtjenester."]
[null,"Produkt ID",null,null,"Beskrivelse",{"$nulls":5},"Per måned"]
[null,"PAAS-man.kubernetes24",null,null,"Managed Compliant Kubernetes 24/7",{"$nulls":5},"Tilbud"]
[null,"PAAS-man.kubernetes8",null,null,"Managed Compliant Kubernetes 8/5",{"$nulls":5},"Tilbud"]
[null,"PAAS-man.elasticsearch",null,null,"Managed Elasticsearch (ingår i Compliant Kubernetes)",{"$nulls":5},"Tilbud"]
[null,"PAAS-openshift",null,null,"Ej support",{"$nulls":5},"Tilbud"]
[null,"PAAS-jupyter.notebook",null,null,"Single basic Jupyter notebook with 1 lab, 8vCPU/16GB RAM virtual machine",{"$nulls":5},5650]
[null,"PAAS-man.nats",null,null,"Managed NATS",{"$nulls":5},"Tilbud"]
[null,"PAAS-man.mariadb",null,null,"Managed MariaDB",{"$nulls":5},"Tilbud"]
[null,"PAAS-man.redis",null,null,"Managed Redis",{"$nulls":5},"Tilbud"]
[]
[]
[]
[null,"Support og konsulenttjenester"]
[]
[]
[null,"Support gjelder Safespring Compute, Safespring Storage og Safespring Backup."]
[null,"Alla priser angivna i SEK, exklusive moms."]
[]
[null,"Support"]
[null,"Safespring tilbyr flere støtteavtaler."]
[null,"Produkt ID",null,"Beskrivelse",{"$nulls":4},"Fakturering pr",null,"Pris"]
[null,"SUPPORT-base",null,"Support för Safesprings tjänster",{"$nulls":4},"N/A",null,0]
[null,"SUPPORT-standard",null,"Access to backchannel chat room with support and engineering",{"$nulls":4},"Total volym",null,"3 % av totalt volym 5"]
[null,"SUPPORT-premium",null,"Dedicated Service Manager with quarterly operations meetings",{"$nulls":4},"Timme",null,"Tilbud"]
[]
[]
[null,"Konsulttjenester"]
[null,"Safespring tilbyr flere konsulttjenester."]
[null,"Produkt ID",null,"Beskrivelse",{"$nulls":4},"Fakturering pr",null,"Pris"]
[null,"PS-consult.jun",null,"Cloud Infrastructure Consultant, junior expertise level",{"$nulls":4},"Timme",null,{"$f":"PS_consult.jun_SEK","v":1127}]
[null,"PS-consult.sen",null,"Cloud infrastructure Consultant, senior expertise level",{"$nulls":4},"Timme",null,{"$f":"PS_consult.sen_SEK","v":1374}]
[null,"PS-cloudarch.jun",null,"Cloud Infrastructure Architect Consultant, junior expertise level",{"$nulls":4},"Timme",null,{"$f":"PS_cloudarch.jun_SEK","v":1277}]
[null,"PS-cloudarch.sen",null,"Cloud Infrastructure Architect Consultant, senior expertise level",{"$nulls":4},"Timme",null,{"$f":"PS_cloudarch.sen_SEK","v":1374}]
[null,"PS-pm.jun",null,"Project Manager, junior expertise level",{"$nulls":4},"Timme",null,{"$f":"PS_pm.jun_SEK","v":1139}]
[null,"PS-pm.sen",null,"Project Manager, senior expertise level",{"$nulls":4},"Timme",null,{"$f":"PS_pm.sen_SEK","v":1374}]
[]
[]
[null,"Utbildningar"]
[null,"Safespring tilbyr flere utdanninger innen IaaS og molntjenester."]
[null,"Produkt ID",null,"Beskrivelse",null,null,"Längd",null,"Fakturering pr",null,"Pris"]
[null,"COURSE-intro.iaas",null,"Introduktion till \"infrastruktur som tjänst\"",null,null,"En dag",null,"Mulighet",null,"Tilbud"]
[null,"COURSE-cxo.strategy",null,"Molnstrategi för ledningsgrupper,",null,null,"En dag",null,"Mulighet",null,"Tilbud"]
[null,"COURSE-intro.cloud",null,"Introduktion till moln-infrastrukturteknik,",null,null,"Fire dager",null,"Mulighet",null,"Tilbud"]
[null,"COURSE-devops.microservices",null,"Modern DevOps och \"microservices\"",null,null,"Fire dager",null,"Mulighet",null,"Tilbud"]
[]
[]
[]
[]
[]
[]
[null,"Månedlig kostnad"]
[]
[]
[null,"Alle priser er oppgitt i NOK, eks mva."]
[]
[null,"Kontakt Safespring for et komplett tilbud"]
[null,"Telefon: 35 68 88 70"]
[null,"hello@safespring.com"]
[]
[null,"Produkt",{"$nulls":7},"Månedlig kostnad"]
[null,"Safespring Compute",{"$f":"SUM(I26:I37*C26:C37)+SUM(I47:I56*b2_list_Antal_instanser)+SUM(I62:I65*C62:C65)+SUM(I72:I74*C72:C74)&\" vCPU\"&\"     /     \"&SUM(I26:I37*E26)+SUM(b2_list_vCPU*b2_list_ram)+SUM(I62:I65*D62:D65)+SUM(I72:I74*D72:D74)&\" GB RAM\"&\"     /     \"&SUM(I26:I37*E26:E37)+SUM(b2_list_vCPU*E47:E56)+SUM(I62:I65*E62:E65)+SUM(I72:I74*E72:E74)&\" GB  NVME\"&\"     /     \"&SUM(I81:I83)&\" GB Blocklagring\"","v":"0 vCPU     /     0 GB RAM     /     0 GB  NVME     /     0 GB Blocklagring"},{"$nulls":6},{"$f":"K66+K75+K57+K40+K84","v":0}]
[null,"Safespring Storage",{"$f":"K96&\" TB - S3\"&\"     /     \"&K95&\" TB - Archive\"","v":"0 TB - S3     /     0 TB - Archive"},{"$nulls":6},{"$f":"K97","v":0}]
[null,"Safespring Backup",{"$nulls":7},{"$f":"K121","v":0}]
[null,"Totalt",{"$nulls":7},{"$f":"SUM(J231:J233)","v":0}]
[]
[]
[]
[]
[null,"1 Dedup er en datareduksjon gjort i tjenesten. Avhengig av dataene varierer det normalt mellom 45 % -90 %"]
[null,"2 Prisen er per beskyttet GB på klienten."]
[null,"3 Prisen er per lagret GB i tjenesten etter deduplisering og komprimering. 1000 GB er inkludert i den faste månedsprisen."]
[null,"4 Prisen er per lagret GB i tjenesten etter deduplisering og komprimering."]
[null,"5 The support fee is charged at 3 % of the total volume with a minimum fee of 1500 SEK per month."]

{"sheet":"NOK - Safesprings tjeneste 2021","index":4,"n_rows":225,"n_cols":13,"rows_kept":225,"cut":false,"hidden":true,"merged":[[179,1,179,5],[210,1,212,6],[213,1,213,5],[220,5,220,6],[136,1,138,6],[139,1,139,5],[140,1,140,5],[175,1,177,6],[178,1,178,5],[123,5,123,6],[123,9,123,10],[124,5,124,6],[124,9,124,10],[125,5,125,6],[125,9,125,10],[105,3,105,4],[105,5,105,6],[105,7,105,8],[105,9,105,10],[122,9,122,10],[106,3,106,4],[106,5,106,6],[106,7,106,8],[106,9,106,10],[115,1,117,6],[118,1,118,5],[119,1,119,5],[122,2,122,3],[122,5,122,6],[104,7,104,8],[104,9,104,10],[103,3,103,4],[103,5,103,6],[103,7,103,8],[103,9,103,10],[89,5,89,6],[94,1,96,6],[97,1,97,5],[98,1,98,5],[104,3,104,4],[104,5,104,6],[101,3,101,4],[101,5,101,6],[101,7,101,8],[101,9,101,10],[102,3,102,4],[102,5,102,6],[102,7,102,8],[102,9,102,10],[88,5,88,6],[3,1,3,2],[14,1,16,6],[18,1,18,5],[87,5,87,6],[10,3,10,5]]}
[]
[]
[]
[]
[null,"Priskalkulator 04.01.2022"]
[]
[]
[null,"Kontakt Safespring",null,"Valuta"]
[null,"Telefon: +47 35 68 88 70"]
[null,"sales@safespring.se"]
[null,null,null,{"$f":"\"1 SEK = \"&NOK&\" NOK\"","v":"1 SEK = 1 NOK"}]
[]
[]
[]
[null,"Safespring Compute"]
[]
[]
[null,"Infrastruktur kan kjøres med en gratis opensource-lisens eller med en Windows-lisens."]
[null,"Alle priser er oppgitt i NOK, eksklusiv mva."]
[null,"Instruksjoner: Angi ønsket antall i de fargede feltene."]
[]
[]
[null,"Instanser med sentral blokklagring"]
[null,"Produkt ID","vCPU","RAM (GB)","Disk (GB)",null,"Per time","Per måned","Antall instanser",null,"Infrastruktur"]
[null,"INSTANCE-b.tiny",1,1,40,null,{"$f":"H25/720","v":0.38750000000000001},{"$f":"C25*IAAS_vcpu_SEK+D25*IAAS_ram_SEK+E25*IAAS_ssd_SEK","v":279},null,"Instanser",{"$f":"ROUNDUP(I25*H25,2)","v":0}]
[null,"INSTANCE-b.small",1,2,40,null,0.46388888888888891,{"$f":"C26*IAAS_vcpu_SEK+D26*IAAS_ram_SEK+E26*IAAS_ssd_SEK","v":334},null,"Instanser",0]
[null,"INSTANCE-b.medium",2,4,40,null,0.72777777777777775,524,null,"Instanser",0]
[null,"INSTANCE-b.large",4,8,40,null,1.2555555555555555,904,null,"Instanser",0]
[null,"INSTANCE-b.xlarge",8,16,40,null,2.3111111111111109,1664,null,"Instanser",0]
[null,"INSTANCE-b.2xlarge",16,32,40,null,4.4222222222222225,3184,null,"Instanser",0]
[null,"INSTANCE-m.small",1,4,40,null,0.6166666666666667,444,null,"Instanser",0]
[null,"INSTANCE-m.medium",2,8,40,null,1.0333333333333334,744,null,"Instanser",0]
[null,"INSTANCE-m.large",4,16,40,null,1.8666666666666667,1344,null,"Instanser",0]
[null,"INSTANCE-m.xlarge",8,32,40,null,3.5333333333333332,2544,null,"Instanser",0]
[null,"INSTANCE-m.2xlarge",16,64,40,null,6.8666666666666663,4944,null,"Instanser",0]
[null,"INSTANCE-m.4xlarge",32,128,40,null,{"$f":"H36/720","v":13.533333333333333},{"$f":"C36*IAAS_vcpu_SEK+D36*IAAS_ram_SEK+E36*IAAS_ssd_SEK","v":9744},null,"Instanser",0]
[null,"INSTANCE-m.8xlarge",64,256,40,null,26.866666666666667,19344,null,"Instanser",0]
[null,"  Totalt",{"$f":"SUM(C25:C37*I25:I37)","v":0},{"$f":"SUM(D25:D37*I25:I37)","v":0},{"$f":"SUM(E25:E37*I25:I37)","v":0},null,null,null,{"$f":"SUM(I25:I37)&\" st\"","v":"0 st"},null,{"$f":"SUM(K25:K35)","v":0}]
[]
[]
[null,"Instanser med lokal lagring (NVMe-disk)"]
[null,"Produkt ID","vCPU","RAM (GB)","Disk (GB)",null,"Per time","Per måned","Antall instanser",null,"Infrastruktur"]
[null,"INSTANCE-lb.tiny",1,1,10,null,{"$f":"H43/720","v":0.2013888888888889},{"$f":"C43*IAAS_vcpu_SEK+D43*IAAS_ram_SEK+E43*IAAS_nvme_SEK","v":145},null,"Instanser",{"$f":"ROUNDUP(I43*H43,2)","v":0}]
[null,"INSTANCE-lb.small",1,2,20,null,0.29166666666666669,210,null,"Instanser",0]
[null,"INSTANCE-lb.medium.1d",2,4,250,null,0.875,630,null,"Instanser",0]
[null,"INSTANCE-lb.large.1d",4,8,250,null,1.4027777777777777,1010,null,"Instanser",0]
[null,"INSTANCE-lb.xlarge.1d",8,16,250,null,2.4583333333333335,1770,null,"Instanser",0]
[null,"INSTANCE-lb.2xlarge.1d",16,32,250,null,4.5694444444444446,3290,null,"Instanser",0]
[null,"INSTANCE-lb.2xlarge.2d",16,32,500,null,4.916666666666667,3540,null,"Instanser",0]
[null,"INSTANCE-lb.2xlarge.4d",16,32,1000,null,5.6111111111111107,4040,null,"Instanser",0]
[null,"INSTANCE-lb.4xlarge.1d",32,64,250,null,8.7916666666666661,6330,null,"Instanser",0]
[null,"INSTANCE-lb.4xlarge.2d",32,64,500,null,9.1388888888888893,6580,null,"Instanser",0]
[null,"INSTANCE-lb.4xlarge.4d",32,64,1000,null,9.8333333333333339,7080,null,"Instanser",0]
[null,"INSTANCE-lm.small",1,4,20,null,0.44444444444444442,320,null,"Instanser",0]
[null,"INSTANCE-lm.medium.1d",2,8,250,null,1.1805555555555556,850,null,"Instanser",0]
[null,"INSTANCE-lm.large.1d",4,16,250,null,2.0138888888888888,1450,null,"Instanser",0]
[null,"INSTANCE-lm.xlarge.1d",8,32,250,null,3.6805555555555554,2650,null,"Instanser",0]
[null,"INSTANCE-lm.xlarge.2d",8,32,500,null,{"$f":"H58/720","v":4.0277777777777777},{"$f":"C58*IAAS_vcpu_SEK+D58*IAAS_ram_SEK+E58*IAAS_nvme_SEK","v":2900},null,"Instanser",0]
[null,"INSTANCE-lm.xlarge.4d",8,32,1000,null,4.7222222222222223,3400,null,"Instanser",0]
[null,"INSTANCE-lm.2xlarge.1d",16,64,250,null,7.0138888888888893,5050,null,"Instanser",0]
[null,"INSTANCE-lm.2xlarge.2d",16,64,500,null,7.3611111111111107,5300,null,"Instanser",0]
[null,"INSTANCE-lm.2xlarge.4d",16,64,1000,null,8.0555555555555554,5800,null,"Instanser",0]
[null,"INSTANCE-lm.4xlarge.1d",32,128,250,null,13.680555555555555,9850,null,"Instanser",0]
[null,"INSTANCE-lm.4xlarge.2d",32,128,500,null,14.027777777777779,10100,null,"Instanser",0]
[null,"INSTANCE-lm.4xlarge.4d",32,128,1000,null,14.722222222222221,10600,null,"Instanser",0]
[null,"INSTANCE-lm.8xlarge.4d",64,256,1000,null,{"$f":"H66/720","v":28.055555555555557},{"$f":"C66*IAAS_vcpu_SEK+D66*IAAS_ram_SEK+E66*IAAS_nvme_SEK","v":20200},null,"Instanser",0]
[null,"  Totalt",{"$f":"SUM(C43:C66*I43:I66)","v":0},{"$f":"SUM(D43:D66*I43:I66)","v":0},{"$f":"SUM(E43:E66*I43:I66)","v":0},null,null,null,{"$f":"SUM(I43:I66)&\" st\"","v":"0 st"},null,{"$f":"SUM(K43:K65)","v":0}]
[]
[]
[null,"Instanser med GPU og lokal lagring (NVME-disk)"]
[null,"Produkt ID","CPU (p) core","RAM (GB)","NVME (GB)","GPU","Per time","Per måned","Antall instanser","Windows-lisenser",null,"Infrastruktur","Lisenser"]
[null,"INSTANCE-glm.large.1d",4,16,250,1,{"$f":"H72/720","v":9.6527777777777786},{"$f":"C72*IAAS_vcpu_SEK+D72*IAAS_ram_SEK+E72*IAAS_nvme_SEK+F72*IAAS_gpu_SEK","v":6950},null,null,{"$f":"J63","v":"Instanser"},{"$f":"ROUNDUP(I72*H72,2)","v":0},{"$f":"J72*C72*SW_win.ser.201X_SEK","v":0}]
[null,"INSTANCE-glm.xlarge.2d",8,32,500,2,19.305555555555557,{"$f":"C73*IAAS_vcpu_SEK+D73*IAAS_ram_SEK+E73*IAAS_nvme_SEK+F73*IAAS_gpu_SEK","v":13900},null,null,"Instanser",{"$f":"ROUNDUP(I73*H73,2)","v":0},{"$f":"J73*C73*SW_win.ser.201X_SEK","v":0}]
[null,"INSTANCE-glm.2xlarge.4d",16,64,1000,4,38.611111111111114,{"$f":"C74*IAAS_vcpu_SEK+D74*IAAS_ram_SEK+E74*IAAS_nvme_SEK+F74*IAAS_gpu_SEK","v":27800},null,null,{"$f":"J65","v":"Instanser"},{"$f":"ROUNDUP(I74*H74,2)","v":0},{"$f":"J74*C74*SW_win.ser.201X_SEK","v":0}]
[null,"INSTANCE-glm.4xlarge.8d",32,128,1000,6,60.555555555555557,{"$f":"C75*IAAS_vcpu_SEK+D75*IAAS_ram_SEK+E75*IAAS_nvme_SEK+F75*IAAS_gpu_SEK","v":43600},null,null,"Instanser",{"$f":"ROUNDUP(I75*H75,2)","v":0},{"$f":"J75*C75*SW_win.ser.201X_SEK","v":0}]
[null,"  Totalt",{"$nulls":6},{"$f":"SUM(I72:I75)&\" st\"","v":"0 st"},{"$f":"SUM(J72:J75)&\" st\"","v":"0 st"},null,{"$f":"SUM(L72:L75)","v":0},{"$f":"SUM(M72:M75)","v":0}]
[]
[]
[null,"\"Bare Metal\" compute "]
[null,"Produkt ID","CPU (p) core","RAM (GB)","NVME (GB)",null,"Per time","Per måned","Antall instanser","Windows-lisenser",null,"Infrastruktur","Lisenser"]
[null,"INSTANCE-p1.2xlarge.16d",16,128,3800,null,{"$f":"H81/720","v":9.5},{"$f":"INSTANCE_p1.2xlarge.16d_SEK","v":6840},null,null,"Instanser",{"$f":"ROUNDUP(I81*H81,2)","v":0},{"$f":"J81*C81*SW_win.ser.201X_SEK","v":0}]
[null,"INSTANCE-p1.4xlarge.16d",32,256,3800,null,19,{"$f":"INSTANCE_p1.4xlarge.16d_SEK","v":13680},null,null,{"$f":"K81","v":"Instanser"},{"$f":"ROUNDUP(I82*H82,2)","v":0},{"$f":"J82*C82*SW_win.ser.201X_SEK","v":0}]
[null,"INSTANCE-p1.8xlarge.32d",64,512,7600,null,38,{"$f":"INSTANCE_p1.8xlarge.32d_SEK","v":27360},null,null,"Instanser",{"$f":"ROUNDUP(I83*H83,2)","v":0},{"$f":"J83*C83*SW_win.ser.201X_SEK","v":0}]
[null,"  Totalt",{"$nulls":6},{"$f":"SUM(I81:I83)&\" st\"","v":"0 st"},{"$f":"SUM(J81:J83)&\" st\"","v":"0 st"},null,{"$f":"SUM(L81:L83)","v":0},{"$f":"SUM(M81:M83)","v":0}]
[]
[]
[null,"Ekstra lagring"]
[null,"Produkt ID","Beskrivelse",null,"Per time","Per GB/måned",null,null,"Ekstra GB",null,"Pris"]
[null,"VOLUME-large","HDD-backed 3-replica Ceph",null,{"$f":"F89/720","v":1.6666666666666666E-3},{"$f":"VOLUME_large_SEK","v":1.2},null,null,null,"GB",{"$f":"ROUNDUP(I89*F89,2)","v":0}]
[null,"VOLUME-fast","SSD-backed 3-replica Ceph",null,{"$f":"F90/720","v":5.0000000000000001E-3},{"$f":"VOLUME_fast_SEK","v":3.6},null,null,null,"GB",{"$f":"ROUNDUP(I90*F90,2)","v":0}]
[null,"Totalt",{"$nulls":6},{"$f":"SUM(I89:I90)&\" GB\"","v":"0 GB"},null,{"$f":"SUM(K89:K90)","v":0}]
[]
[]
[]
[null,"Safespring Storage"]
[]
[]
[null,"Objektlagring med standard S3."]
[null,"Prismodell basert på antall lagrede TB, se tabellen nedenfor."]
[null,"Instruksjoner: Fyll ut ønsket mengde i de fargede feltene."]
[]
[null,"Produkt ID","Antall TB","Per TB/måned"]
[null,"S3-storage","0 - 50",{"$f":"S3_storage.50_SEK","v":350}]
[null,"S3-storage","51 - 100",{"$f":"S3_storage.100_SEK","v":270}]
[null,"S3-storage","101 - 500",{"$f":"S3_storage.500_SEK","v":200}]
[null,"S3-storage","501 - 1000",{"$f":"S3_storage.1000_SEK","v":185}]
[null,"S3-storage","1001 - ",{"$f":"S3_storage.quote_SEK","v":"Be om offert"}]
[]
[]
[null,"Produkt ID",null,null,null,"Per TB/måned",null,"Antall TB",{"$nulls":4},"Pris"]
[null,"S3-storage",null,null,null,{"$f":"_xlfn.IFS(H111<51,D103,H111<101,D104,H111<501,D105,H111<1001,D106,H111>1000,D107)","v":350},null,null,"TB",null,null,null,{"$f":"_xlfn.IFS(H111<1001,ROUNDUP(H111*F111,2),H111>1000,D107)","v":0}]
[null,"  Totalt",{"$nulls":10},{"$f":"SUM(M111)","v":0}]
[]
[]
[]
[null,"Safespring Backup"]
[]
[]
[null,"Cloud backup-løsning for lokale servere eller skyservere basert på Spectrum Protect."]
[null,"Alle priser er oppgitt i NOK, eksklusiv mva.\t\t\t\t"]
[null,"Instruksjoner: Fyll ut ønsket mengde i de fargede feltene."]
[]
[null,"Produkt ID","Fast månedlig pris",null,"Per time","Per GB/måned",null,"Antal GB",null,"Deduplisering*",null,null,"Pris"]
[null,"BAAS-on.demand **",null,"N/A","N/A",{"$f":"BAAS_on.demand_SEK","v":2.4500000000000002},null,null,"GB","N/A",null,null,{"$f":"ROUNDUP(H124*F124,2)","v":0}]
[null,"BAAS-small ****",null,5500,"N/A",{"$f":"BAAS_small_SEK","v":1.75},null,null,"GB",0.75,null,null,{"$f":"IF(H125>0,IF(SUM($D$125+($F$125*((H125*(1-$J$125))-1000)))<=D125,$D$125,$D$125+($F$125*((H125*(1-$J$125))-1000))),0)","v":0}]
[null,"BAAS-large ***",null,9500,"N/A",{"$f":"BAAS_large_SEK","v":0.92},null,null,"GB",0.75,null,null,{"$f":"IF(H126>0,$D$126+($F$126*(H126*(1-$J$126))),0)","v":0}]
[null,"  Totalt",{"$nulls":5},{"$f":"SUM(H124:H126)&\" GB\"","v":"0 GB"},{"$nulls":4},{"$f":"SUM(M124:M126)","v":0}]
[]
[null,"* Dedup er en datareduksjon som er gjort i tjenesten. Avhengig av data varierer det normalt mellom 45% -90%"]
[null,"** Prisen er per beskyttet GB på klienten."]
[null,"*** Prisen er per lagret GB i tjenesten etter deduplisering og komprimering."]
[null,"**** Prisen er per lagret GB i tjenesten etter deduplisering og komprimering. 1000 GB er inkludert i den faste månedlige prisen."]
[]
[]
[]
[]
[null,"Nettverk og programvare"]
[]
[]
[null,"Alle priser er oppgitt i NOK, eksklusiv mva.\t\t\t\t"]
[]
[]
[null,"Nettverk"]
[null,"Produkt ID"," Type",null,"Beskrivelse",{"$nulls":6},"Pris per","Per måned"]
[null,"NET-publicv4","IPv4",null,"Publik",{"$nulls":6},"IP adresse",{"$f":"NET_publicv4_SEK","v":25}]
[null,"NET-publicv6","IPv6",null,"Publik",{"$nulls":6},"N/A",{"$f":"NET_publicv6_SEK","v":0}]
[null,"NET-ingress","Datatrafikk",{"$nulls":8},"GB",{"$f":"NET_ingress_SEK","v":0}]
[null,"NET-egress","Datatrafikk",null,"1 TB / måned inkludert per prosjekt (gratis i akademisk sektor)",{"$nulls":6},"GB",{"$f":"NET_egress_SEK","v":0}]
[null,"NET-mgn.slb","Managed SLB ",{"$nulls":8},"Instans ",{"$f":"NET_mgn.slb_SEK","v":"Begär offert"}]
[null,"NET-rdns","Reverse DNS names",{"$nulls":8},"N/A",{"$f":"NET_rdns_SEK","v":0}]
[null,"NET-byoip","Bring your own IP prefixes",{"$nulls":8},"N/A",{"$f":"NET_byoip_SEK","v":0}]
[]
[null,"Programvare og lisenser"]
[null,"Produkt ID"," Type",null,"Beskrivelse",{"$nulls":6},"Pris per","Per måned"]
[null,"SW-win.ser.2016",null,null,"Windows Server 2016",{"$nulls":6},"vCPU",{"$f":"SW_win.ser.201X_SEK","v":175}]
[null,"SW-win.ser.2019",null,null,"Windows Server 2019",{"$nulls":6},"vCPU",{"$f":"SW_win.ser.201X_SEK","v":175}]
[null,"SW-ms.sql.ser",null,null,"Microsft SQL Server",{"$nulls":6},"vCPU",{"$f":"SW_ms.sql.ser_SEK","v":1229}]
[null,"SW-stackn",null,null,"STACKn (Machine Learning), supported by provider",{"$nulls":6},"Instanse",{"$f":"SW_stackn_SEK","v":"Begär offert"}]
[null,"SW-nextcloud",null,null,"Nextcloud Filesharing",{"$nulls":6},"N/A",{"$f":"SW_nextcloud_SEK","v":"Begär offert"}]
[null,"SW-suse.linux",null,null,"SUSE Linux Enterprise Server, 12x5 Support",{"$nulls":6},"N/A",{"$f":"SW_suse_SEK","v":"Begär offert"}]
[null,"SW-cluster.control",null,null,"Cluster Control Supported",{"$nulls":6},"N/A",{"$f":"SW_cluster.control_SEK","v":"3x instanspris"}]
[null,"SW-backup.ninja",null,null,"Backup Ninja",{"$nulls":6},"Database",{"$f":"SW_backup.ninja_SEK","v":400}]
[]
[]
[null,"Plattformstjänster"]
[null,"Produkt ID",null,null,"Beskrivelse",{"$nulls":7},"Per måned"]
[null,"PAAS-man.kubernetes24",null,null,"Managed Compliant Kubernetes 24/7",{"$nulls":7},{"$f":"PAAS_man.kubernetes24_SEK","v":"Begär offert"}]
[null,"PAAS-man.kubernetes8",null,null,"Managed Compliant Kubernetes 8/5",{"$nulls":7},{"$f":"PAAS_man.kubernetes8_SEK","v":"Begär offert"}]
[null,"PAAS-man.elasticsearch",null,null,"Managed Elasticsearch ",{"$nulls":7},"Forespørsel om tilbud"]
[null,"PAAS-man.redis",null,null,"Managed Redis",{"$nulls":7},"Forespørsel om tilbud"]
[null,"PAAS-man.nats",null,null,"Managed NATS",{"$nulls":7},"Forespørsel om tilbud"]
[null,"PAAS-man.mariadb",null,null,"Managed MariaDB",{"$nulls":7},"Forespørsel om tilbud"]
[]
[]
[]
[null,"Support og konsulenttjenester"]
[]
[]
[null,"Alle priser er oppgitt i NOK, eksklusiv mva.\t\t\t\t"]
[]
[]
[null,"Support"]
[null,"Produkt ID",null,"Beskrivelse",{"$nulls":6},"Lading per",null,"Pris"]
[null,"SUPPORT-iaas.base",null,"Base IaaS Support",{"$nulls":6},"N/A",null,0]
[null,"SUPPORT-standard",null,"Access to backchannel chat room with support and engineering",{"$nulls":6},"Total volym",null,"3 % av total volym"]
[null,"SUPPORT-premium",null,"Dedicated Service Manager with quarterly operations meetings",{"$nulls":6},"Time",null,"Pris på forespørsel"]
[null,null,null,"* The support fee is charged at 3 % of the total volume with a minimum fee of 1500 SEK per month."]
[]
[null,"Konsulenttjenester"]
[null,"Produkt ID",null,"Beskrivelse",{"$nulls":6},"Lading per",null,"Pris"]
[null,"PS-consult.jun",null,"Cloud Infrastructure Consultant, junior expertise level",{"$nulls":6},"Time",null,{"$f":"PS_consult.jun_SEK","v":1127}]
[null,"PS-consult.sen",null,"Cloud infrastructure Consultant, senior expertise level",{"$nulls":6},"Time",null,{"$f":"PS_consult.sen_SEK","v":1374}]
[null,"PS-cloudarch.jun",null,"Cloud Infrastructure Architect Consultant, junior expertise level",{"$nulls":6},"Time",null,{"$f":"PS_cloudarch.jun_SEK","v":1277}]
[null,"PS-cloudarch.sen",null,"Cloud Infrastructure Architect Consultant, senior expertise level",{"$nulls":6},"Time",null,{"$f":"PS_cloudarch.sen_SEK","v":1374}]
[null,"PS-pm.jun",null,"Project Manager, junior expertise level",{"$nulls":6},"Time",null,{"$f":"PS_pm.jun_SEK","v":1139}]
[null,"PS-pm.sen",null,"Project Manager, senior expertise level",{"$nulls":6},"Time",null,{"$f":"PS_pm.sen_SEK","v":1374}]
[]
[]
[null,"Utdanninger"]
[null,"Produkt ID",null,"Beskrivelse",null,null,"Lengde",null,null,null,"Lading per",null,"Pris"]
[null,"TRAIN-intro.iaas",null,"Introduktion til \"Infrastruktur som tjeneste\"",null,null,"En dag",null,null,null,"Mulighet",null,"Forespørsel om tilbud"]
[null,"TRAIN-cxo.strategy",null,"Skystrategi for ledergrupper",null,null,"En dag",null,null,null,"Mulighet",null,"Forespørsel om tilbud"]
[null,"TRAIN-intro.cloud",null,"introduksjon til skybasert infrastrukturteknikk",null,null,"Fyra dagar",null,null,null,"Mulighet",null,"Forespørsel om tilbud"]
[null,"TRAIN-devops.microservices",null,"Moderne DevOps og \"microservices\"",null,null,"Fyra dagar",null,null,null,"Mulighet",null,"Forespørsel om tilbud"]
[]
[]
[]
[]
[]
[]
[null,"Månedlig kostnad"]
[]
[]
[null,"Alle priser er oppgitt i SEK, eksklusiv mva."]
[]
[null,"Kontakt Safespring for et fullstendig tilbud"]
[null,"Telefon: 35 68 88 70"]
[null,"sales@safespring.se"]
[]
[null,"  Tjeneste",{"$nulls":9},"Månedlig kostnad"]
[null,"  Safespring Compute",{"$f":"SUM(C67+C38)&\" vCPU\"","v":"0 vCPU"},{"$f":"SUM(D38+D67)&\" GB RAM\"","v":"0 GB RAM"},{"$f":"SUM(E38)&\" GB  Disk\"","v":"0 GB  Disk"},{"$f":"SUM(E67)&\" GB NVME-Disk\"","v":"0 GB NVME-Disk"},{"$nulls":5},{"$f":"L76+L84+K67+K38+K91","v":0}]
[null,"  Safespring Storage",{"$nulls":9},{"$f":"M112","v":0}]
[null,"  Safespring Backup",{"$nulls":9},{"$f":"M127","v":0}]
[]
[null,"  Totalt",{"$nulls":9},{"$f":"SUM(O221:O224)","v":0}]

{"sheet":"SUNET SEK - priser 2020","index":5,"n_rows":167,"n_cols":14,"rows_kept":167,"cut":false,"hidden":true,"merged":[[120,12,120,13],[121,12,121,13],[98,5,98,6],[98,7,98,8],[3,1,3,2],[14,1,16,6],[18,1,18,5],[97,5,97,6],[97,7,97,8],[113,3,113,4],[113,5,113,6],[113,7,113,8],[113,9,113,10],[99,5,99,6],[99,7,99,8],[104,1,106,6],[107,1,107,5],[108,1,108,5],[111,3,111,4],[111,5,111,6],[111,7,111,8],[111,9,111,10],[112,3,112,4],[112,5,112,6],[112,7,112,8],[112,9,112,10],[114,3,114,4],[114,5,114,6],[114,7,114,8],[114,9,114,10],[115,3,115,4],[115,5,115,6],[115,7,115,8],[115,9,115,10],[132,9,132,10],[116,3,116,4],[116,5,116,6],[116,7,116,8],[116,9,116,10],[119,5,119,6],[120,5,120,6],[125,1,127,6],[128,1,128,5],[129,1,129,5],[132,2,132,3],[132,5,132,6],[163,9,163,12],[133,5,133,6],[133,9,133,10],[134,5,134,6],[134,9,134,10],[135,5,135,6],[135,9,135,10],[149,1,151,6],[152,1,152,5],[159,1,159,2],[160,1,160,2],[162,1,162,2]]}
[]
[]
[]
[]
[null,"Priskalkylator 2020-07-02"]
[]
[]
[null,"Kontakta Safespring",null,"Valuta"]
[null,"Telefon: 08-55 10 73 56",null,"SEK"]
[null,"sales@safespring.se"]
[]
[]
[]
[]
[null,"Safespring Compute"]
[]
[]
[null,"   Infrastruktur kan köras med kostnadsfri opensource-licens eller med Windows-licens."]
[null,"   Alla priser är angivna i SEK, exklusive moms."]
[null,"   Instruktioner: Fyll i önskad kvantitet i de färgade fälten. "]
[]
[]
[null,"Instanser med central blocklagring"]
[null,"Produkt ID","Region","vCPU","RAM (GB)","Disk (GB)","Per timme","Per månad","Antal instanser","Windows-licenser","SQL-licenser",null,"Infrastruktur","Licenser"]
[null,"INSTANCE-b.tiny","STO-1",1,1,40,{"$f":"H25/720","v":0},{"$f":"D25*IAAS_vcpu_sunet_b_m+E25*IAAS_ram_sunet_b_m+F25*IAAS_ssd_SUNET","v":0},null,null,null,"Instanser",{"$f":"ROUNDUP(I25*H25,2)","v":0},{"$f":"J25*D25*SW_win.ser.201X_SEK+K25*D25*SW_ms.sql.ser_SEK","v":0}]
[null,"INSTANCE-b.small","STO-1",1,2,40,0,0,null,null,null,"Instanser",{"$f":"ROUNDUP(I26*H26,2)","v":0},0]
[null,"INSTANCE-b.medium","STO-1",2,4,40,0,0,null,null,null,"Instanser",0,0]
[null,"INSTANCE-b.large","STO-1",4,8,40,0,0,null,null,null,"Instanser",0,0]
[null,"INSTANCE-b.xlarge","STO-1",8,16,40,0,0,null,null,null,"Instanser",0,0]
[null,"INSTANCE-b.2xlarge","STO-1",16,32,40,0,0,null,null,null,"Instanser",0,0]
[null,"INSTANCE-m.small","STO-1",1,4,40,0,0,null,null,null,"Instanser",0,0]
[null,"INSTANCE-m.medium","STO-1",2,8,40,0,0,null,null,null,"Instanser",0,0]
[null,"INSTANCE-m.large","STO-1",4,16,40,0,0,null,null,null,"Instanser",0,0]
[null,"INSTANCE-m.xlarge","STO-1",8,32,40,0,0,null,null,null,"Instanser",0,0]
[null,"INSTANCE-m.2xlarge","STO-1",16,65,40,0,0,null,null,null,"Instanser",0,0]
[null,"  Totalt",{"$nulls":6},{"$f":"SUM(I25:I35)&\" st\"","v":"0 st"},{"$f":"SUM(J25:J35)&\" st\"","v":"0 st"},{"$f":"SUM(K25:K35)&\" st\"","v":"0 st"},null,{"$f":"SUM(M25:M35)","v":0},{"$f":"SUM(N25:N35)","v":0}]
[]
[]
[null,"Instanser med lokal lagring (NVMe-disk)"]
[null,"Produkt ID","Region","vCPU","RAM (GB)","Disk (GB)","Per timme","Per månad","Antal instanser","Windows-licenser","SQL-licenser",null,"Infrastruktur","Licenser"]
[null,"INSTANCE-lb.tiny","STO-1",1,1,10,{"$f":"H41/720","v":0.2013888888888889},{"$f":"D41*IAAS_vcpu_SUNET+E41*IAAS_ram_SUNET+F41*IAAS_nvme_SUNET","v":145},null,null,null,"Instanser",{"$f":"ROUNDUP(I41*H41,2)","v":0},{"$f":"J41*D41*SW_win.ser.201X_SEK+K41*D41*SW_ms.sql.ser_SEK","v":0}]
[null,"INSTANCE-lb.large.1d","STO-1",4,8,250,{"$f":"H42/720","v":1.4027777777777777},1010,null,null,null,"Instanser",0,0]
[null,"INSTANCE-lb.xlarge.1d","STO-1",8,16,250,2.4583333333333335,1770,null,null,null,"Instanser",0,0]
[null,"INSTANCE-lb.2xlarge.1d","STO-1",16,32,250,4.5694444444444446,3290,null,null,null,"Instanser",0,0]
[null,"INSTANCE-lb.2xlarge.2d","STO-1",16,32,500,4.916666666666667,3540,null,null,null,"Instanser",0,0]
[null,"INSTANCE-lb.2xlarge.4d","STO-1",16,32,1000,5.6111111111111107,4040,null,null,null,"Instanser",0,0]
[null,"INSTANCE-lb.4xlarge.1d","STO-1",32,65,250,8.8680555555555554,6385,null,null,null,"Instanser",0,0]
[null,"INSTANCE-lb.4xlarge.2d","STO-1",32,65,500,9.2152777777777786,6635,null,null,null,"Instanser",0,0]
[null,"INSTANCE-lb.4xlarge.4d","STO-1",32,65,1000,9.9097222222222214,7135,null,null,null,"Instanser",0,0]
[null,"INSTANCE-lm.large.1d","STO-1",4,16,250,2.0138888888888888,1450,null,null,null,"Instanser",0,0]
[null,"INSTANCE-lm.xlarge.1d","STO-1",8,32,250,3.6805555555555554,2650,null,null,null,"Instanser",0,0]
[null,"INSTANCE-lm.xlarge.2d","STO-1",8,32,500,4.0277777777777777,2900,null,null,null,"Instanser",0,0]
[null,"INSTANCE-lm.xlarge.4d","STO-1",8,32,1000,4.7222222222222223,3400,null,null,null,"Instanser",0,0]
[null,"INSTANCE-lm.2xlarge.1d","STO-1",16,65,250,7.0902777777777777,5105,null,null,null,"Instanser",0,0]
[null,"INSTANCE-lm.2xlarge.2d","STO-1",16,65,500,7.4375,5355,null,null,null,"Instanser",0,0]
[null,"INSTANCE-lm.2xlarge.4d","STO-1",16,65,1000,8.1319444444444446,5855,null,null,null,"Instanser",0,0]
[null,"INSTANCE-lm.4xlarge.1d","STO-1",32,131,250,13.909722222222221,10015,null,null,null,"Instanser",0,0]
[null,"INSTANCE-lm.4xlarge.2d","STO-1",32,131,500,14.256944444444445,10265,null,null,null,"Instanser",0,0]
[null,"INSTANCE-lm.4xlarge.4d","STO-1",32,131,1000,14.951388888888889,10765,null,null,null,"Instanser",0,0]
[null,"  Totalt",{"$nulls":6},{"$f":"SUM(I41:I59)&\" st\"","v":"0 st"},{"$f":"SUM(J41:J59)&\" st\"","v":"0 st"},{"$f":"SUM(K41:K59)&\" st\"","v":"0 st"},null,{"$f":"SUM(M41:M59)","v":0},{"$f":"SUM(N41:N59)","v":0}]
[]
[]
[null,"SUNET Private Cloud"]
[null,"Produkt ID","Region","CPU (p) core","RAM (GB)","Disk (GB)","Per timme","Per månad","Antal instanser","Windows-licenser","SQL-licenser",null,"Infrastruktur","Licenser"]
[null,"lb.tiny","STH-B",1,1,10,{"$f":"H65/720","v":0.1875},{"$f":"D65*IAAS_vcpu_SUNET+E65*IAAS_ram_SUNET+F65*IAAS_ssd_SUNET","v":135},null,null,null,"Instanser",{"$f":"ROUNDUP(I65*H65,2)","v":0},{"$f":"J65*D65*SW_win.ser.201X_SEK+K65*D65*SW_ms.sql.ser_SEK","v":0}]
[null,"lb.small","STH-B",1,2,20,0.2638888888888889,190,null,null,null,"Instanser",0,0]
[null,"lb.medium.1d","STH-B",2,4,250,0.52777777777777779,380,null,null,null,"Instanser",0,0]
[null,"lb.large.1d","STH-B",4,8,250,1.0555555555555556,760,null,null,null,"Instanser",0,0]
[null,"lb.xlarge.1d","STH-B",8,16,250,2.1111111111111112,1520,null,null,null,"Instanser",0,0]
[null,"lb.2xlarge.1d","STH-B",16,32,250,4.2222222222222223,3040,null,null,null,"Instanser",0,0]
[null,"lb.2xlarge.2d","STH-B",16,32,500,4.2222222222222223,3040,null,null,null,"Instanser",0,0]
[null,"lb.2xlarge.4d","STH-B",16,32,1000,4.2222222222222223,3040,null,null,null,"Instanser",0,0]
[null,"lb.4xlarge.1d","STH-B",32,65,250,8.5208333333333339,6135,null,null,null,"Instanser",0,0]
[null,"lb.4xlarge.2d","STH-B",32,65,500,8.5208333333333339,6135,null,null,null,"Instanser",0,0]
[null,"lb.4xlarge.4d","STH-B",32,65,1000,8.5208333333333339,6135,null,null,null,"Instanser",0,0]
[null,"lm.small","STH-B",1,4,20,0.41666666666666669,300,null,null,null,"Instanser",0,0]
[null,"lm.medium.1d","STH-B",2,8,250,0.83333333333333337,600,null,null,null,"Instanser",0,0]
[null,"lm.large.1d","STH-B",4,16,250,1.6666666666666667,1200,null,null,null,"Instanser",0,0]
[null,"lm.xlarge.1d","STH-B",8,32,250,3.3333333333333335,2400,null,null,null,"Instanser",0,0]
[null,"lm.2xlarge.1d","STH-B",16,65,250,6.7430555555555554,4855,null,null,null,"Instanser",0,0]
[null,"lm.2xlarge.2d","STH-B",16,65,500,6.7430555555555554,4855,null,null,null,"Instanser",0,0]
[null,"lm.2xlarge.4d","STH-B",16,65,1000,{"$f":"H82/720","v":6.7430555555555554},4855,null,null,null,"Instanser",{"$f":"ROUNDUP(I82*H82,2)","v":0},0]
[null,"lm.4xlarge.1d","STH-B",32,131,250,{"$f":"H83/720","v":13.5625},9765,null,null,null,"Instanser",0,0]
[null,"lm.4xlarge.2d","STH-B",32,131,500,13.5625,9765,null,null,null,"Instanser",0,0]
[null,"lm.4xlarge.4d","STH-B",32,131,1000,13.5625,9765,null,null,null,"Instanser",0,0]
[null," Totalt",{"$nulls":6},{"$f":"SUM(I65:I85)&\" st\"","v":"0 st"},{"$f":"SUM(J65:J85)&\" st\"","v":"0 st"},{"$f":"SUM(K65:K85)&\" st\"","v":"0 st"},null,{"$f":"SUM(M65:M85)","v":0},{"$f":"SUM(N65:N85)","v":0}]
[]
[]
[null,"Bare Metal compute "]
[null,"Produkt ID","CPU (p) core","RAM (GB)","NVME (GB)",null,"Per timme","Per månad","Antal instanser","Windows-licenser","SQL-licenser",null,"Infrastruktur","Licenser"]
[null,"INSTANCE-p1.2xlarge.16d",16,128,3800,null,{"$f":"H91/720","v":9.5},{"$f":"INSTANCE_p1.2xlarge.16d_SEK","v":6840},0,0,0,"Instanser",{"$f":"ROUNDUP(I91*H91,2)","v":0},{"$f":"J91*C91*SW_win.ser.201X_SEK+K91*C91*SW_ms.sql.ser_SEK","v":0}]
[null,"INSTANCE-p1.4xlarge.16d",32,256,3800,null,19,{"$f":"INSTANCE_p1.4xlarge.16d_SEK","v":13680},0,0,0,{"$f":"L91","v":"Instanser"},0,{"$f":"J92*C92*SW_win.ser.201X_SEK+K92*C92*SW_ms.sql.ser_SEK","v":0}]
[null,"INSTANCE-p1.8xlarge.32d",64,512,7600,null,38,{"$f":"INSTANCE_p1.8xlarge.32d_SEK","v":27360},0,0,0,"Instanser",0,{"$f":"J93*C93*SW_win.ser.201X_SEK+K93*C93*SW_ms.sql.ser_SEK","v":0}]
[null,"  Totalt",{"$nulls":6},{"$f":"SUM(I91:I93)&\" st\"","v":"0 st"},{"$f":"SUM(J91:J93)&\" st\"","v":"0 st"},{"$f":"SUM(K91:K93)&\" st\"","v":"0 st"},null,{"$f":"SUM(M91:M93)","v":0},{"$f":"SUM(N91:N93)","v":0}]
[]
[]
[null,"Extra lagring"]
[null,"Produkt ID","Beskrivning",null,"Per timme","Per GB/månad",null,null,null,"Extra GB"]
[null,"VOLUME-large","SSD-backed 3-replica Ceph",null,{"$f":"F99/720","v":1.6666666666666666E-3},{"$f":"VOLUME_large_SEK","v":1.2},{"$nulls":4},"GB",null,null,{"$f":"ROUNDUP(J99*F99,2)","v":0}]
[null,"VOLUME-fast","HDD-backed 3-replica Ceph",null,{"$f":"F100/720","v":5.0000000000000001E-3},{"$f":"VOLUME_fast_SEK","v":3.6},null,null,null,0,"GB",null,null,{"$f":"ROUNDUP(J100*F100,2)","v":0}]
[null,"Totalt",{"$nulls":7},{"$f":"SUM(J99:J100)&\" GB\"","v":"0 GB"},null,null,null,{"$f":"SUM(N99:N100)","v":0}]
[]
[]
[]
[null,"SUNET Lagring i privat molntjänst"]
[]
[]
[null,"  Objektlagring med standarden S3."]
[null,"Prismodell baserat på antal lagrade GB, se tabellen nedan."]
[null,"   Instruktioner: Fyll i önskad kvantitet i de färgade fälten. "]
[]
[null,"Produkt ID","Antal TB","Per GB /månad"]
[null,"S3-storage","<300",{"$f":"S3_storage.50_SUNET","v":0.35}]
[null,"S3-storage",">=300",{"$f":"S3_storage.100_SUNET","v":0.19}]
[null,"S3-storage",">=1000",{"$f":"S3_storage.500_SUNET","v":0.1}]
[null,"S3-storage",">=2000",{"$f":"S3_storage.1000_SUNET","v":0.06}]
[null,"S3-storage","1001 - ",{"$f":"S3_storage.quote_SUNET","v":"Be om offert"}]
[]
[]
[null,"Produkt ID",null,null,"Per timme","Per GB/månad",null,"Antal TB",null,null,"Minsta åtagande",null,null,"Storage"]
[null,"S3-storage",null,null,{"$f":"F121/720","v":4.861111111111111E-4},{"$f":"_xlfn.IFS(H121<=299,D113,H121<1000,D114,H121<2000,D115,H121>=2000,D116)","v":0.35},null,0,"TB",null,{"$f":"_xlfn.IFS(H121<=299,\"6 månader\",H121<1000,\"12 månader\",H121<2000,\"12 månader\",H121>=2000,\"36 månader\")","v":"6 månader"},null,{"$f":"ROUNDUP((H121*1000)*F121,2)","v":0}]
[null,"  Totalt",{"$nulls":10},{"$f":"SUM(M121)","v":0}]
[]
[]
[]
[null,"Safespring Backup"]
[]
[]
[null,"Cloud backup solution for on-prem or cloud servers based on Spectrum Protect."]
[null,"   Alla priser angivna i SEK, exklusive moms."]
[null,"   Instruktioner: Fyll i önskad kvantitet i de färgade fälten. "]
[]
[null,"Produkt ID","Fast månadspris",null,"Per timme","Per GB/månad",null,"Antal GB",null,"Deduplicering*",null,null,null,"Pris"]
[null,"BAAS-on.demand **",null,"N/A","N/A",{"$f":"BAAS_on.demand_SEK","v":2.4500000000000002},null,0,"GB","N/A",null,null,null,{"$f":"ROUNDUP(H134*F134,2)","v":0}]
[null,"BAAS-small ****",null,5500,"N/A",{"$f":"BAAS_small_SEK","v":1.75},null,0,"GB",0.75,null,null,null,{"$f":"IF(H135>0,IF(SUM($D$135+($F$135*((H135*(1-$J$135))-1000)))<=D135,$D$135,$D$135+($F$135*((H135*(1-$J$135))-1000))),0)","v":0}]
[null,"BAAS-large ***",null,9500,"N/A",{"$f":"BAAS_large_SEK","v":0.92},null,0,"GB",0.75,null,null,null,{"$f":"IF(H136>0,$D$136+($F$136*(H136*(1-$J$136))),0)","v":0}]
[null,"  Totalt",{"$nulls":5},{"$f":"SUM(H134:H136)&\" GB\"","v":"0 GB"},{"$nulls":5},{"$f":"SUM(N134:N136)","v":0}]
[]
[null,"* Dedup är en datareduktion som görs i tjänsten. Beroende på data varierar det normalt mellan 45%-90%"]
[null,"** Priset är per skyddad GB på klienten. "]
[null,"*** Priset är per lagrad GB i tjänsten efter deduplicering och komprimering. "]
[null,"**** Priset är per lagrad GB i tjänsten efter deduplicering och komprimering. Det ingår 1000GB i det fasta månadspriset."]
{"$rows_empty":7}
[null,"Månadskostnad"]
[]
[]
[null,"   Alla priser angivna i SEK, exklusive moms."]
[]
[null,"  Kontakta Safespring för fullständig offert"]
[null,"Telefon: 08-55 10 73 56"]
[null,"sales@safespring.se"]
[]
[null,"  Produkt",{"$nulls":10},"Månadskostnad"]
[null,"  Safespring Compute",{"$nulls":10},{"$f":"M86+M94+M60+M36+N101","v":0}]
[null,"  Safespring Storage",{"$nulls":10},{"$f":"M122","v":0}]
[null,"  Safespring Backup",{"$nulls":10},{"$f":"N137","v":0}]
[null,"  Licenser (Microsoft)",{"$nulls":10},{"$f":"N86+N94+N60+N36","v":0}]
[null,"  Totalt",{"$nulls":7},{"$f":"SUM(M160:M163)","v":0}]
[]
[null,"Safespring Compute - Totalt efter avdrag för 12 månaders åtagande",{"$nulls":10},{"$f":"M160*0.88+M161+M162+M163","v":0}]
[null,"Safespring Compute - Totalt efter avdrag för 36 månaders åtagade",{"$nulls":10},{"$f":"M160*0.76+M161+M162+M163","v":0}]

{"sheet":"Data","index":6,"n_rows":76,"n_cols":11,"rows_kept":76,"cut":false,"hidden":true,"merged":[]}
[]
[null,"Safespring Compute",null,"Prissättning","SEK/NOK","EUR","SUNET med påslag",null,"Currency Factor"]
[null,"IAAS-ram",null,55,{"$f":"D3*SEK","v":55},{"$f":"D3*EUR","v":4.8949999999999996},{"$f":"(D3*(1+Safespring.price.increase))*(1+sunet.price.increase)","v":55},null,"SEK",null,1]
[null,"IAAS-ssd",null,3.6,3.6,{"$f":"D4*EUR","v":0.32040000000000002},3.6,null,"EUR",null,8.8999999999999996E-2]
[null,"IAAS-vcpu",null,80,80,{"$f":"D5*EUR","v":7.1199999999999992},80,null,"NOK",null,1]
[null,"IAAS-nvme",null,1,1,8.8999999999999996E-2,1]
[null,"IAAS-gpu",null,5500,{"$f":"D7*SEK","v":5500},{"$f":"D7*EUR","v":489.5},5500]
[null,"IAAS-pcpu (beräknad)",null,2.66,{"$f":"D8*IAAS_vcpu_SEK*SEK","v":212.8},{"$f":"D8*IAAS_vcpu_SEK*EUR","v":18.9392},2.66,null,"  Typ","Antal","Pris"]
[{"$nulls":8},"  vCPU",null,{"$f":"J9*IAAS_vcpu_SEK","v":0}]
[{"$nulls":8},"  RAM",null,{"$f":"J10*IAAS_ram_SEK","v":0}]
[{"$nulls":8}," Totalt",null,{"$f":"SUM(K9:K10)","v":0}]
[]
[null,"Bare metal compute",null,"Prissättning","SEK","EUR","SUNET"]
[null,"INSTANCE-p1.2xlarge.16d",null,{"$f":"INSTANCE_p1.4xlarge.16d_SEK/2","v":6840},{"$f":"D14*SEK","v":6840},{"$f":"D14*EUR","v":608.76}]
[null,"INSTANCE-p1.4xlarge.16d",null,13680,13680,1217.52]
[null,"INSTANCE-p1.8xlarge.32d",null,{"$f":"INSTANCE_p1.4xlarge.16d_SEK*2","v":27360},27360,2435.04]
[]
[null,"Safespring Compute",null,"Prissättning","SEK","EUR","SUNET"]
[null,"VOLUME-large",null,1.2,{"$f":"D19*SEK","v":1.2},{"$f":"D19*EUR","v":0.10679999999999999},{"$f":"(D19*(1+Safespring.price.increase))*(1+sunet.price.increase)","v":1.2}]
[null,"VOLUME-fast",null,3.6,{"$f":"D20*SEK","v":3.6},{"$f":"D20*EUR","v":0.32040000000000002},{"$f":"(D20*(1+Safespring.price.increase))*(1+sunet.price.increase)","v":3.6}]
[]
[null,"Safespring Backup",null,"Prissättning","SEK","EUR","SUNET"]
[null,"BAAS-on.demand",null,2.4500000000000002,{"$f":"D23*SEK","v":2.4500000000000002},{"$f":"D23*EUR","v":0.21804999999999999}]
[null,"BAAS-small.fee",null,5500,{"$f":"D24*SEK","v":5500},{"$f":"D24*EUR","v":489.5}]
[null,"BAAS-large.fee",null,9500,9500,845.5]
[null,"BAAS-small",null,1.75,1.75,0.15575]
[null,"BAAS-large",null,0.92,{"$f":"D27*SEK","v":0.92},{"$f":"D27*EUR","v":8.1879999999999994E-2}]
[]
[null,"Safespring Storage",null,"Prissättning","SEK","EUR","SUNET"]
[null,"S3-storage.50",null,500,{"$f":"D30*SEK","v":500},{"$f":"D30*EUR","v":44.5},0.35]
[null,"S3-storage.100",null,500,500,44.5,0.19]
[null,"S3-storage.500",null,500,500,44.5,0.1]
[null,"S3-storage.1000",null,500,500,44.5,0.06]
[null,"S3-storage.quote",null,"Be om offert",{"$f":"D34","v":"Be om offert"},"Request a quote",{"$f":"S3_storage.quote_SEK","v":"Be om offert"}]
[null,"S3-archive.50",null,350,{"$f":"D35*SEK","v":350},{"$f":"D35*EUR","v":31.15},0.35]
[null,"S3-archive.100",null,270,270,24.029999999999998,0.19]
[null,"S3-archive.500",null,200,200,17.8,0.1]
[null,"S3-archive.1000",null,185,185,16.465,0.06]
[null,"S3-archive.quote",null,"Be om offert",{"$f":"D39","v":"Be om offert"},"Request a quote",{"$f":"S3_storage.quote_SEK","v":"Be om offert"}]
[]
[null,"Nätverk",null,"Prissättning","SEK","EUR","SUNET"]
[null,"NET-publicv4",null,25,{"$f":"D42*SEK","v":25},{"$f":"D42*EUR","v":2.2250000000000001},"N/A"]
[null,"NET-publicv6",null,0,0,{"$f":"D43*EUR","v":0},"N/A"]
[null,"NET-ingress",null,0,0,0,"N/A"]
[null,"NET-egress",null,0,0,{"$f":"D45*EUR","v":0},"N/A"]
[null,"NET-mgn.slb",null,"Begär offert",{"$f":"D46","v":"Begär offert"},"Request a quote","N/A"]
[null,"NET-rdns",null,0,0,0,"N/A"]
[null,"NET-saferoute",null,"Begär offert",{"$f":"D48","v":"Begär offert"},"Request a quote",{"$f":"S3_storage.quote_SEK","v":"Be om offert"}]
[null,"NET-byoip",null,0,{"$f":"D49*SEK","v":0},{"$f":"D49*EUR","v":0},"N/A"]
[]
[null,"Mjukvara",null,"Prissättning","SEK","EUR","SUNET"]
[null,"SW-win.ser.2016 & 2019",null,175,{"$f":"D52*SEK","v":175},{"$f":"D52*EUR","v":15.574999999999999},"N/A"]
[null,"SW-ms.sql.ser",null,1229,1229,{"$f":"D53*EUR","v":109.381},"N/A"]
[null,"SW-ms.sql.ser.ent",null,4766,{"$f":"D54*SEK","v":4766},{"$f":"D54*EUR","v":424.17399999999998},"N/A"]
[null,"SW-stackn",null,null,"Begär offert","Request a quote","N/A"]
[null,"SW-nextcloud",null,null,"Begär offert","Request a quote","N/A"]
[null,"SW-suse",null,null,"Begär offert","Request a quote","N/A"]
[null,"SW-cluster.control",null,null,"3x instanspris","3x instance price","N/A"]
[null,"SW-backup.ninja",null,400,400,{"$f":"D59*EUR","v":35.6},"N/A"]
[]
[null,"Plattformstjänster",null,"Prissättning","SEK","EUR","SUNET"]
[null,"PAAS-man.kubernetes24",null," Begär offert ","Begär offert"," Requests for quotation ","N/A"]
[null,"PAAS-man.kubernetes8",null," Begär offert ","Begär offert","Requests for quotation","N/A"]
[null,"PAAS-man.elasticsearch",null,null,"Begär offert","Requests for quotation","N/A"]
[null,"PAAS-man.redis",null,null,"Begär offert","Requests for quotation","N/A"]
[null,"PAAS-man.nats",null,null,"Begär offert","Requests for quotation","N/A"]
[null,"PAAS-man.mariadb",null,null,"Begär offert","Requests for quotation","N/A"]
[null,"PAAS-openshift",null,0,"Begär offert","Requests for quotation","N/A"]
[]
[null,"Konsulttjänster",null,"Prissättning","SEK","EUR","SUNET"]
[null,"PS-consult.jun",null,1127,{"$f":"D71*SEK","v":1127},{"$f":"D71*EUR","v":100.303},"N/A"]
[null,"PS-consult.sen",null,1374,{"$f":"D72*SEK","v":1374},122.28599999999999,"N/A"]
[null,"PS-cloudarch.jun",null,1277,1277,113.65299999999999,"N/A"]
[null,"PS-cloudarch.sen",null,1374,1374,122.28599999999999,"N/A"]
[null,"PS-pm.jun",null,1139,1139,101.371,"N/A"]
[null,"PS-pm.sen",null,1374,1374,122.28599999999999,"N/A"]